Cogmind - Beta 9.6 --- EXPLORER MODE // 2020.05.09 @ 21:15:47 // Winter2019/RPGLIKE Player: hemo Result: Destroyed 0B10! Performance ------------- Evolutions (9) 4500 Regions Visited (33) 6600 Robots Destroyed (1087) 5435 Value Destroyed (53573) 53573 Prototype IDs (148) 2960 Alien Tech Used (11) 2200 Bonus (47388) 47388 TOTAL SCORE: 122656 Bonus ------- Triggered High Security 1000 Triggered Max Security 2000 High Alert Combat Kills 11884 Follower Combat Kills 2018 Met Data Miner 300 Met Imprinter 300 Destroyed Z-Imprinter 1000 Triggered Deep Caves Wall 1000 Exposed GOLEM Chamber 1000 Met Zhirov 300 Met Warlord at Base 500 MAIN.C Attacked Warlord 500 Warlord Defense Kill 8416 Used Core Reset Matrix 3000 Hacked Protovariant 1000 Scanned by Researcher 500 Acquired SGEMP 2000 Met Sigix 2000 Activated Exoskeleton 3000 Escaped with Exo-Sigix 10000 Win 3000 Friendly Fire -7330 Cogmind --------- Core Integrity 336/600 Matter 330/425 Energy 2194/2200 System Corruption 0% Temperature Cool (0) Movement Hovering (30) Location Tau Ceti IV Orbit Parts ------- > --- POWER (4) -------- Improved Quantum Reactor Vortex Chain Reactor > --- PROPULSION (6) --- Cooled Gravmag System Cooled Gravmag System Cooled Gravmag System Cooled Gravmag System Cooled Gravmag System Cooled Gravmag System > --- UTILITY (13) ----- Experimental Power Amplifier Experimental Coolant Injector Experimental Coolant Injector Experimental Energy Well Experimental Signal Interpreter Experimental Terrain Scanner Experimental Core Analyzer Precision Energy Filter Advanced Particle Accelerator Quantum Capacitor Advanced Reaction Control System Experimental Phase Shifter > --- WEAPON (3) ------- Null Cannon Core Cannon > --- INVENTORY (7) ---- Experimental Energy Well (1000) EM Dispersion Field SGEMP Prototype Peak State ------------ > --- POWER ------------ Improved Quantum Reactor Vortex Chain Reactor > --- PROPULSION ------- Cooled Gravmag System Cooled Gravmag System Cooled Gravmag System Cooled Gravmag System Cooled Gravmag System Cooled Gravmag System > --- UTILITY ---------- Experimental Power Amplifier Experimental Coolant Injector Experimental Coolant Injector Experimental Energy Well Experimental Signal Interpreter Experimental Terrain Scanner Experimental Core Analyzer Precision Energy Filter Advanced Particle Accelerator Quantum Capacitor Advanced Reaction Control System Experimental Phase Shifter > --- WEAPON ----------- Null Cannon Core Cannon > --- INVENTORY -------- Experimental Energy Well EM Dispersion Field Dimensional Node Initializer SGEMP Prototype Sigix Containment Pod [Rating: 229] Favorites ----------- Power Cooled Deuterium Engine Engine Cooled Deuterium Engine Power Core Light Nuclear Core Reactor Vortex Chain Reactor Propulsion Cooled Gravmag System Leg Assembled Alloy Leg Wheel Wheel Hover Unit Cooled Gravmag System Flight Unit Flight Unit Utility Advanced Signal Interpreter Device Experimental Sensor Array Storage Assembled Biocell Array Processor Advanced Signal Interpreter Hackware Advanced System Shield Protection Assembled Alloy Armor Weapon Assembled Focal Cannon Energy Gun Improved Spread Laser Energy Cannon Assembled Focal Cannon Ballistic Gun Light Assault Rifle Ballistic Cannon Gauss Cannon Launcher Heavy Proton Missile Launcher Special Weapon Remote Datajack Impact Weapon Heavy Hammer Slashing Weapon Phasing Sabre Piercing Weapon Vortex Lance Build | -11 -10 -10 -9 -9 -8 -8 -7 -7 -7 -7 -6 -6 -6 -6 -6 -6 -5 -5 -5 -5 -5 -4 -4 -4 -4 -4 -3 -3 -3 -2 -2 -2 -1 ------- Run | Scr Mat Min Mat Min Mat Sto Fac Low Low Dat Pro Fac Low Low Zio Dee Pro Fac Upp Upp War Pro Fac Upp Upp Zhi Pro Res Tes Res Qua Sec Acc Slots Evolved 21 | 3 2 1 6 . 1 . 2 . . . . 1 1 . . . . . . . . 1 . . . . . 1 . 1 1 . . Power 2 | . . . 1 . . . 1 . . . . . . . . . . . . . . . . . . . . . . . . . . Propulsion 5 | 1 1 . 3 . . . . . . . . . . . . . . . . . . . . . . . . . . . . . . Utility 12 | 1 1 1 2 . 1 . 1 . . . . 1 1 . . . . . . . . 1 . . . . . 1 . 1 . . . Weapon 2 | 1 . . . . . . . . . . . . . . . . . . . . . . . . . . . . . . 1 . . Parts Attached 369 | 7 10 11 37 3 15 12 25 1 4 2 2 50 1 . 8 37 2 24 . . 22 6 19 1 2 1 . 20 25 4 8 9 1 Power 32 | 1 1 1 2 . 1 4 4 . . . . 6 . . . 2 . 4 . . 4 . . . . . . . 2 . . . . Engine 21 | 1 1 . 1 . 1 3 4 . . . . 5 . . . 2 . 3 . . . . . . . . . . . . . . . Core 5 | . . 1 1 . . 1 . . . . . 1 . . . . . 1 . . . . . . . . . . . . . . . Reactor 6 | . . . . . . . . . . . . . . . . . . . . . 4 . . . . . . . 2 . . . . Propulsion 70 | 2 3 8 20 . 5 . 2 . . . . 5 . . . 4 . 8 . . 5 1 4 . . . . 1 1 . 1 . . Treads . | . . . . . . . . . . . . . . . . . . . . . . . . . . . . . . . . . . Leg 1 | . . . . . . . . . . . . . . . . . . . . . 1 . . . . . . . . . . . . Wheel 2 | 2 . . . . . . . . . . . . . . . . . . . . . . . . . . . . . . . . . Hover 54 | . . 4 16 . 5 . 2 . . . . 4 . . . 4 . 8 . . 3 1 4 . . . . 1 1 . 1 . . Flight 13 | . 3 4 4 . . . . . . . . 1 . . . . . . . . 1 . . . . . . . . . . . . Utility 174 | 2 2 1 7 1 9 . 13 1 2 . . 16 1 . 3 19 2 12 . . 13 5 11 1 2 1 . 15 15 4 6 9 1 Device 129 | 1 . 1 4 1 6 . 11 1 2 . . 11 1 . 2 11 2 6 . . 10 4 9 1 2 1 . 11 12 3 6 9 1 Storage 10 | . 1 . 1 . . . . . . . . . . . . 3 . 2 . . . . . . . . . 2 . 1 . . . Processor 13 | . 1 . . . 1 . 1 . . . . 1 . . 1 . . 2 . . 2 . 1 . . . . 1 2 . . . . Hackware 12 | . . . . . 2 . 1 . . . . 4 . . . . . 2 . . . 1 1 . . . . 1 . . . . . Protection 10 | 1 . . 2 . . . . . . . . . . . . 5 . . . . 1 . . . . . . . 1 . . . . Artifact . | . . . . . . . . . . . . . . . . . . . . . . . . . . . . . . . . . . Weapon 93 | 2 4 1 8 2 . 8 6 . 2 2 2 23 . . 5 12 . . . . . . 4 . . . . 4 7 . 1 . . Energy Gun 44 | 1 2 . 5 1 . 4 4 . 1 1 1 13 . . 1 7 . . . . . . 1 . . . . 1 1 . . . . Energy Cannon 7 | . . . . . . . . . . . . 4 . . . . . . . . . . 1 . . . . . 1 . 1 . . Ballistic Gun 4 | 1 1 1 . . . . 1 . . . . . . . . . . . . . . . . . . . . . . . . . . Ballistic Cannon 1 | . . . . 1 . . . . . . . . . . . . . . . . . . . . . . . . . . . . . Launcher 9 | . . . . . . 4 . . . . . 1 . . 1 1 . . . . . . . . . . . 1 1 . . . . Special Weapon 5 | . . . . . . . . . . 1 1 . . . 2 1 . . . . . . . . . . . . . . . . . Impact Weapon 4 | . 1 . 3 . . . . . . . . . . . . . . . . . . . . . . . . . . . . . . Slashing Weapon 11 | . . . . . . . 1 . 1 . . 5 . . 1 3 . . . . . . . . . . . . . . . . . Piercing Weapon 8 | . . . . . . . . . . . . . . . . . . . . . . . 2 . . . . 2 4 . . . . Special Melee Weapon . | . . . . . . . . . . . . . . . . . . . . . . . . . . . . . . . . . . Unidentified Prototypes 50 | . . 1 1 . . . . . . . . 8 . . . 2 . 1 . . 11 . 4 . 1 2 . 6 11 . 2 . . Parts Lost 10 | . . 1 . . . . 2 . . . . 3 . . . 3 . . . . . . . . . . . . 1 . . . . Power . | . . . . . . . . . . . . . . . . . . . . . . . . . . . . . . . . . . Propulsion . | . . . . . . . . . . . . . . . . . . . . . . . . . . . . . . . . . . Utility 8 | . . . . . . . 2 . . . . 2 . . . 3 . . . . . . . . . . . . 1 . . . . Weapon 2 | . . 1 . . . . . . . . . 1 . . . . . . . . . . . . . . . . . . . . . Highest Loss Streak 2 | . . 1 . . . . 1 . . . . 1 . . . 2 . . . . . . . . . . . . 1 . . . . Average Slot Usage (%) 95 | . 94 96 99 100 99 100 99 100 100 100 100 99 99 100 100 85 100 99 100 100 95 94 89 90 90 88 90 90 89 91 88 86 84 Engine 7 | . 12 6 1 . 4 9 15 15 15 15 15 15 14 14 14 10 14 13 14 14 3 . . . . . . . . . . . . Core 1 | . . 3 12 12 6 . . . . . . . . . . . . . . . . . . . . . . . . . . . . Reactor 3 | . . . . . . . . . . . . . . . . . . . . . 5 9 9 9 9 9 9 8 8 8 8 7 7 Hover 27 | . . 16 30 37 36 35 32 31 31 31 31 30 28 28 28 26 28 28 28 28 27 27 27 27 27 27 27 26 25 25 24 23 23 Device 26 | . 12 17 21 23 24 23 26 36 36 36 36 34 32 33 33 24 33 29 28 28 27 29 22 22 22 20 22 22 26 28 33 35 34 Storage 2 | . 1 10 7 1 . . . . . . . . . . . 1 9 4 4 4 4 4 4 4 4 4 4 4 4 4 4 3 3 Processor 4 | . 4 10 7 6 5 5 5 5 5 5 5 5 4 4 4 4 . 1 4 4 4 4 4 4 4 4 4 4 7 8 8 7 7 Hackware 4 | . . . . . 5 11 6 . . . . 4 9 9 7 . . 3 4 4 4 4 9 9 9 9 9 11 4 4 1 . . Protection 2 | . 10 . 1 6 1 . . . . . . . . . . 5 4 4 4 4 4 4 4 4 4 4 4 4 4 4 1 . . Energy Gun 4 | . 11 . 13 7 5 3 9 10 10 9 10 8 9 9 3 4 . . . . . . . . . . . . . . . . . Energy Cannon 3 | . . . . . . . . . . . . . . . . 2 9 9 9 9 9 9 4 4 4 4 4 4 4 4 7 7 7 Naked Turns . | . . . . . . . . . . . . . . . . . . . . . . . . . . . . . . . . . . Heaviest Build 105 | 8 12 14 31 36 36 35 52 54 54 54 54 60 54 54 59 99 85 85 83 83 100 105 103 92 92 90 90 99 101 97 102 103 103 Greatest Support 155 | 20 20 34 56 56 60 60 65 65 65 65 65 80 80 80 80 101 91 141 96 96 101 101 155 105 105 105 105 150 150 150 150 150 150 Greatest Overweight (x) 2 | 2 . . 1 . . . . . . . . . . . . 1 . 1 . . 1 1 1 . . . . . 1 . . 1 1 Average Overweight (x) . | . . . . . . . . . . . . . . . . . . . . . . . . . . . . . . . . . . Largest Inventory Capacity 7 | 1 4 4 5 5 5 5 5 5 5 5 5 5 5 5 5 5 5 5 5 5 6 6 6 6 6 6 6 6 6 6 7 7 7 Average Capacity 5 | . 2 4 4 5 5 5 5 5 5 5 5 5 5 5 5 5 5 5 5 5 5 6 6 6 6 6 6 6 6 6 6 7 7 Most Carried 7 | 1 4 4 5 5 5 5 5 4 4 4 5 5 5 5 5 5 5 5 5 5 6 6 6 6 6 6 6 6 6 6 7 7 4 Average Carried 5 | . 2 3 4 4 4 5 4 4 4 4 4 4 4 5 4 4 4 4 5 5 5 5 5 6 6 6 5 5 5 5 6 6 4 Final Capacity 7 | 1 4 4 5 5 5 5 5 5 5 5 5 5 5 5 5 5 5 5 5 5 6 6 6 6 6 6 6 6 6 6 7 7 7 Final Carried 7 | 1 4 3 5 5 5 5 4 4 4 4 5 5 5 5 5 5 5 5 5 5 6 5 6 6 6 6 6 6 6 6 7 4 4 Class Distribution -------------------- 23% | Hacker-Scout 22% | Machinist-Scout 17% | Wizard-Scout 13% | Generator-Scout 10% | Scavenger-Scout 4% | Hacker-Mutant Dominant Class ---------------- Hacker-Mutant | -10/Materials Scavenger-Scout | -10/Mines Scavenger-Scout | -9/Materials Scavenger-Scout | -9/Mines Scavenger-Scout | -8/Materials Hacker-Scout | -8/Storage Hacker-Scout | -7/Factory Generator-Scout | -7/Lower Caves Generator-Scout | -7/Lower Caves Generator-Scout | -7/Data Miner Generator-Scout | -6/Proximity Caves Hacker-Scout | -6/Factory Hacker-Scout | -6/Lower Caves Hacker-Scout | -6/Lower Caves Hacker-Scout | -6/Zion Machinist-Scout | -6/Deep Caves Machinist-Scout | -5/Proximity Caves Machinist-Scout | -5/Factory Machinist-Scout | -5/Upper Caves Machinist-Scout | -5/Upper Caves Generator-Sprinter | -5/Warlord Generator-Skirmisher | -4/Proximity Caves Wizard-Scout | -4/Factory Wizard-Scout | -4/Upper Caves Wizard-Scout | -4/Upper Caves Wizard-Scout | -4/Zhirov Wizard-Scout | -3/Proximity Caves Wizard-Scout | -3/Research Machinist-Scout | -3/Testing Machinist-Scout | -2/Research Generator-Scout | -2/Quarantine Generator-Scout | -2/Section 7 Generator-Scout | -1/Access Resources | -11 -10 -10 -9 -9 -8 -8 -7 -7 -7 -7 -6 -6 -6 -6 -6 -6 -5 -5 -5 -5 -5 -4 -4 -4 -4 -4 -3 -3 -3 -2 -2 -2 -1 ----------- Run | Scr Mat Min Mat Min Mat Sto Fac Low Low Dat Pro Fac Low Low Zio Dee Pro Fac Upp Upp War Pro Fac Upp Upp Zhi Pro Res Tes Res Qua Sec Acc Matter Collected 6111 | 273 203 320 398 78 804 739 553 10 40 . 55 486 30 . 60 407 50 240 . . 210 60 215 . 30 . 40 200 250 40 80 110 130 Remotely . | . . . . . . . . . . . . . . . . . . . . . . . . . . . . . . . . . . Salvage Created 45645 | 155 847 452 2634 230 1406 2271 3964 508 393 . 573 4544 127 226 169 803 1623 3091 143 291 4192 975 3310 471 284 . 658 4363 3420 762 1087 1377 296 Parts 2148 | 14 57 18 185 21 94 109 194 12 14 . 36 183 4 4 . 33 58 151 13 12 115 49 188 14 17 . 43 231 167 36 21 48 7 Haulers Intercepted 43 | . 2 . 6 . 6 6 5 . . . . 8 . . . . . 2 . . . . 3 . . . . 5 . . . . . Recyclers Shooed 11 | . 2 . 1 . 1 1 . . . . . 3 . . . . . . . . . . 1 . . . . 1 . 1 . . . Parts Field Recycled . | . . . . . . . . . . . . . . . . . . . . . . . . . . . . . . . . . . Retrieved Matter . | . . . . . . . . . . . . . . . . . . . . . . . . . . . . . . . . . . Parts Self-Destructed . | . . . . . . . . . . . . . . . . . . . . . . . . . . . . . . . . . . Prevented . | . . . . . . . . . . . . . . . . . . . . . . . . . . . . . . . . . . Kills | -11 -10 -10 -9 -9 -8 -8 -7 -7 -7 -7 -6 -6 -6 -6 -6 -6 -5 -5 -5 -5 -5 -4 -4 -4 -4 -4 -3 -3 -3 -2 -2 -2 -1 ------- Run | Scr Mat Min Mat Min Mat Sto Fac Low Low Dat Pro Fac Low Low Zio Dee Pro Fac Upp Upp War Pro Fac Upp Upp Zhi Pro Res Tes Res Qua Sec Acc Combat Hostiles Destroyed 926 | . 21 16 56 8 38 36 104 3 11 . 15 91 4 4 . 54 22 50 8 4 71 20 67 5 8 . 11 62 42 30 24 39 2 Guns 337 | . 21 16 45 5 10 5 93 3 11 . 15 77 4 4 . 28 . . . . . . . . . . . . . . . . . Cannons 529 | . . . . 2 26 21 4 . . . . 11 . . . 1 22 49 8 4 71 20 67 5 8 . 11 62 42 30 24 39 2 AOE 54 | . . . 10 1 2 8 6 . . . . 1 . . . 25 . 1 . . . . . . . . . . . . . . . Classes Destroyed 32 | 3 4 1 5 . 2 2 1 1 . . . . . . . 3 1 . . . 4 1 . 1 . . . . 2 1 . . . Worker 21 | 1 . . 3 . . 4 6 . . . . 4 . . . . . 3 . . . . . . . . . . . . . . . Builder 8 | . . . 3 . . . 2 . . . . . . . . . . 2 . . . . . . . . . 1 . . . . . Tunneler 6 | 3 . . 2 . . . 1 . . . . . . . . . . . . . . . . . . . . . . . . . . Hauler 43 | . 2 . 6 . 6 6 5 . . . . 8 . . . . . 2 . . . . 3 . . . . 5 . . . . . Recycler 7 | 1 . . . . 1 . 2 . . . . . . . . . . 3 . . . . . . . . . . . . . . . Carrier 1 | . . . . . . . . . . . . . . . . . . . . . . 1 . . . . . . . . . . . Minesweeper 2 | . . . . . . . . 1 1 . . . . . . . . . . . . . . . . . . . . . . . . Mechanic 2 | . . . . . . 1 . . . . . . . . . . . . . . 1 . . . . . . . . . . . . Operator 9 | . . . 1 . . . 2 . . . . 3 . . . . . 2 . . . . . . . . . . . . . 1 . Drone 9 | . . . . . . . . . . . . . . . . . . . . . . . . . . . . . . 4 3 2 . Watcher 35 | . 3 . 5 . 3 2 7 . . . . 6 . . . . . 6 . . . . 1 . . . . 2 . . . . . Swarmer 114 | . 4 4 11 2 5 3 3 . 6 . 3 14 . . . . . 8 6 . 2 4 14 . 6 . 3 10 . 6 . . . Saboteur 4 | . . . . . . . . . . . . . . . . . . . . . 2 . . . . . . . 1 . . 1 . Grunt 402 | . 17 8 33 6 20 21 73 2 4 . 4 43 2 3 . 1 15 25 . . 31 2 23 3 . . 4 14 18 8 12 9 1 Brawler 28 | . . . . . 1 1 5 . . . 2 5 . . . . 3 2 . 1 5 . . . . . . . 2 . 1 . . Duelist 28 | . . . 1 . 1 1 4 . . . 1 3 . . . . 1 1 . 1 3 6 1 . . . . 1 1 . . 2 . Protector 10 | . . . 1 . . . 2 . . . . 1 . . . . . . . . 5 . . . . . . . . . . 1 . Researcher 6 | . . . . . . . . . . . . . . . . . . . . . . . . . . . . . 5 . . 1 . Sentry 105 | . . . 10 . 9 8 7 . 1 . 1 12 1 . . . 2 10 . 1 . 1 14 1 1 . . 15 . 3 3 5 . Demolisher 6 | . . . . . . 4 . . . . . . . . . . . . . . 1 . . . . . . . 1 . . . . Hunter 72 | . . . . . 2 1 6 1 . . 3 11 1 . . . . . . . 2 3 6 . . . 2 10 10 4 2 7 1 Programmer 69 | . . . . . . . 4 . . . 1 5 . 1 . . . 4 2 . 13 4 9 . 1 . 2 12 5 4 . 2 . Behemoth 4 | . . . . . . . . . . . . . . . . . 1 . . 1 . . . . . . . . . 1 . 1 . S7 Guard 1 | . . . . . . . . . . . . . . . . . . . . . . . . . . . . . . . . 1 . Enhanced Grunt 1 | . . . . . . . . . . . . 1 . . . . . . . . . . . . . . . . . . . . . Lightning 3 | . . . . . . . . . . . . . . . . . . . . . . . . . . . . . . . 3 . . Investigator 2 | . . . . . . . . . . . . . . . . . . . . . . . . . . . . . 2 . . . . Striker 6 | . . . . . . . . . . . . . . . . . . . . . 2 . . . . . . . 2 . . 2 . Executioner 7 | . . . . . . . . . . . . . . . . . . . . . 3 . . . . . . . . . . 4 . Alpha 7 3 | . . . . . . . . . . . . . . . . . . . . . . . . . . . . . 1 . . 2 . Protovariant P 1 | . . . . . . . . . . . . . . . . . . . . . . . . . . . . . 1 . . . . Z-Technician 5 | . . . . . . . . . . . . . . . . 5 . . . . . . . . . . . . . . . . . Z-Light 11 | . . . . . . . . . . . . . . . . 11 . . . . . . . . . . . . . . . . . Assembler 2 | . . . . . . . . . . . . . . . . 2 . . . . . . . . . . . . . . . . . Assembled 44 | . . 4 . . . . . . . . . . . . . 40 . . . . . . . . . . . . . . . . . Golem 2 | . . . . . . . . . . . . . . . . 2 . . . . . . . . . . . . . . . . . Bouncer 1 | . . . . . . . . . . . . . . . . . . . . . 1 . . . . . . . . . . . . Mutant 1 | . . . . . . . . . . . . . . . . . . . . . . . . 1 . . . . . . . . . Knight 2 | . . . . . . . . . . . . . . . . . . . . . 2 . . . . . . . . . . . . Best Kill Streak 25 | 4 5 4 13 5 7 13 15 4 6 . 3 11 3 3 . 25 7 9 5 3 17 9 15 4 6 . 7 10 14 8 6 15 2 Combat Bots Only 25 | . 5 4 9 5 6 9 9 3 6 . 3 9 3 3 . 25 7 8 5 3 16 9 8 4 6 . 7 9 10 8 6 15 2 Max Kills in Single Turn 16 | 1 1 1 6 1 2 4 4 1 2 . 2 3 1 1 . 16 2 3 1 1 2 2 1 1 1 . 1 1 1 1 2 5 2 Gunslinging 1 | . . . . . . . 1 . 1 . 1 . . . . 1 . . . . . . . . . . . . . . . . . Exploded 16 | . . . 2 1 1 2 4 . . . . 1 . . . 16 . 1 . . . . . . . . . . . . . . . Melee . | . . . . . . . . . . . . . . . . . . . . . . . . . . . . . . . . . . Uniques/NPCs Destroyed 4 | . . . . . . . . . . . . . . . . 1 . . . . 1 . . . . . . . . . . . 2 Z-Imprinter (-6/Deep Caves) Warlord (-5/Warlord) Zhirov (-1/Access) Svarog (-1/Access) Combat | -11 -10 -10 -9 -9 -8 -8 -7 -7 -7 -7 -6 -6 -6 -6 -6 -6 -5 -5 -5 -5 -5 -4 -4 -4 -4 -4 -3 -3 -3 -2 -2 -2 -1 -------- Run | Scr Mat Min Mat Min Mat Sto Fac Low Low Dat Pro Fac Low Low Zio Dee Pro Fac Upp Upp War Pro Fac Upp Upp Zhi Pro Res Tes Res Qua Sec Acc Damage Taken 14402 | . 620 349 816 131 801 1011 1726 8 132 . 235 1495 43 82 . 1868 159 338 32 48 1747 141 700 55 40 . 37 614 413 273 159 320 9 Core 10814 | . 464 285 641 95 606 817 1335 6 105 . 185 1160 33 62 . 1283 123 259 21 35 1277 97 510 34 28 . 30 438 290 212 121 255 7 Absorbed by Shields 34 | . . . . . . . . . . . . . . . . . . . . . . . . . . . . . 34 . . . . Redirected to Core 8939 | . 354 175 445 73 545 621 1076 6 79 . 149 1037 33 62 . 1126 102 199 21 20 1073 80 467 32 28 . 20 371 255 170 108 205 7 Core Remaining (%) 92 | 100 . 100 . 100 . 96 . . . . 98 . . . . . 100 . . . . 100 . . . . 100 . 97 . . 69 56 Volleys Fired 2406 | 22 87 62 100 16 106 85 259 15 22 1 28 228 9 8 2 104 30 109 15 12 179 26 221 19 19 8 24 204 163 69 49 99 6 Largest 2 | 2 2 2 2 2 2 2 2 2 2 1 2 2 2 2 1 2 2 2 2 2 2 2 2 1 1 1 1 1 1 1 1 1 1 Hottest 300 | 70 70 70 90 103 103 103 150 150 150 30 150 180 150 150 30 150 50 50 50 50 50 50 50 25 25 25 25 25 130 130 300 300 300 Shots Fired 3790 | 25 173 94 198 32 200 166 517 30 44 1 54 441 18 16 2 204 60 199 30 24 325 52 225 19 19 8 24 204 163 69 49 99 6 Gun 1855 | 25 173 94 198 16 94 65 468 30 44 . 52 381 18 16 . 181 . . . . . . . . . . . . . . . . . Cannon 1908 | . . . . 16 106 84 49 . . . . 60 . . . 18 60 199 30 24 325 52 225 19 19 8 24 204 163 69 49 99 6 Launcher 20 | . . . . . . 17 . . . . . . . . . 3 . . . . . . . . . . . . . . . . . Special 7 | . . . . . . . . . . 1 2 . . . 2 2 . . . . . . . . . . . . . . . . . Kinetic 450 | 3 87 91 14 16 106 84 49 . . . . . . . . . . . . . . . . . . . . . . . . . . Thermal 2912 | 22 86 3 . . . . 426 30 44 . 52 441 18 16 . 199 60 199 30 24 325 52 225 19 19 8 24 204 163 69 49 99 6 Explosive 3 | . . . . . . . . . . . . . . . . 3 . . . . . . . . . . . . . . . . . Electromagnetic 418 | . . . 184 16 94 82 42 . . . . . . . . . . . . . . . . . . . . . . . . . . Robot Hit Streak 105 | 13 23 19 63 14 36 42 79 32 36 37 53 58 28 19 13 52 60 73 13 18 105 37 32 20 38 46 70 100 61 11 35 24 4 Robot Miss Streak 6 | 1 1 2 4 3 3 2 4 3 6 . 3 4 2 1 . 4 . 1 1 1 1 1 1 . . . . 1 2 2 2 1 1 Penetration Max 6 | . . . . 1 1 1 . . . . . . . . . . . . . . . . . . . . . . . . 1 6 1 Secondary Targets 44 | . 6 . 3 . . . 14 . 2 . 2 8 . 1 . 8 . . . . . . . . . . . . . . . . . Max Gunslinging Chain 1 | . 1 . 1 . . . 1 . 1 . 1 1 . 1 . 1 . . . . . . . . . . . . . . . . . Capacitor 875 | . . . . . . . . . . . . . . . . . . . . . . . 215 19 19 8 24 204 163 69 49 99 6 Shots Hit Robots 3203 | 21 151 81 171 23 160 133 422 21 40 1 49 391 17 14 8 194 45 145 16 21 261 38 199 18 18 8 24 190 148 54 41 76 4 Core Hits 2520 | 7 51 32 132 12 75 74 516 32 44 . 86 548 24 21 1 225 25 83 7 5 112 26 93 7 7 1 14 84 73 29 24 46 4 Critical Hits 158 | . 1 . 2 1 13 11 5 . . . . 2 . . . . . . . . . . . . . . . . . 22 34 63 4 Critical Kills 59 | . . . 2 . 6 4 . . . . . . . . . . . . . . . . . . . . . . . 7 16 22 2 Critical Parts Destroyed 77 | . 1 . . 1 6 7 5 . . . . 2 . . . . . . . . . . . . . . . . . 12 14 28 1 Melee Attacks 43 | . 4 . 10 . . . 1 . 1 . . 7 . . 13 7 . . . . . . . . . . . . . . . . . Impact 14 | . 4 . 10 . . . . . . . . . . . . . . . . . . . . . . . . . . . . . . Slashing 29 | . . . . . . . 1 . 1 . . 7 . . 13 7 . . . . . . . . . . . . . . . . . Piercing . | . . . . . . . . . . . . . . . . . . . . . . . . . . . . . . . . . . Sneak Attacks . | . . . . . . . . . . . . . . . . . . . . . . . . . . . . . . . . . . Combat Hostiles . | . . . . . . . . . . . . . . . . . . . . . . . . . . . . . . . . . . Follow-up Attacks . | . . . . . . . . . . . . . . . . . . . . . . . . . . . . . . . . . . Damage Inflicted 198750 | 241 1707 797 4334 653 4795 5357 13273 669 936 . 1579 15353 568 451 836 11523 3390 12159 1213 1475 17797 2990 14424 1253 1369 819 1887 17993 12538 10773 10670 23458 1470 Guns 40685 | 241 1628 797 3072 311 1817 1279 11115 669 936 . 1579 11269 568 451 . 4953 . . . . . . . . . . . . . . . . . Cannons 144214 | . . . . 262 2651 1911 782 . . . . 3090 . . . 787 3390 11212 1213 1475 17797 2990 14424 1253 1369 819 1887 17993 12538 10773 10670 23458 1470 Explosions 12166 | . . . 1246 80 327 2167 1376 . . . . 994 . . . 5029 . 947 . . . . . . . . . . . . . . . Melee 1685 | . 79 . 16 . . . . . . . . . . . 836 754 . . . . . . . . . . . . . . . . . Ramming . | . . . . . . . . . . . . . . . . . . . . . . . . . . . . . . . . . . Kinetic 7047 | 8 558 770 105 262 2651 1911 782 . . . . . . . . . . . . . . . . . . . . . . . . . . Thermal 176611 | 233 1070 27 1246 80 247 501 10808 669 936 . 1579 14894 568 451 . 8284 3390 11499 1213 1475 17797 2990 14424 1253 1369 819 1887 17993 12538 10773 10670 23458 1470 Explosive 4265 | . . . . . . . 819 . . . . 301 . . . 2485 . 660 . . . . . . . . . . . . . . . Electromagnetic 9142 | . . . 2967 311 1897 2945 864 . . . . 158 . . . . . . . . . . . . . . . . . . . . . Impact 95 | . 79 . 16 . . . . . . . . . . . . . . . . . . . . . . . . . . . . . . Slashing 1590 | . . . . . . . . . . . . . . . 836 754 . . . . . . . . . . . . . . . . . Piercing . | . . . . . . . . . . . . . . . . . . . . . . . . . . . . . . . . . . Highest Corruption 5 | . . . . . 1 4 2 . . . . 5 . . . . . 1 . . 5 5 3 1 1 . . 2 1 . . . . Average Corruption 1 | . . . . . 1 2 1 . . . . 1 . . . . . 1 . . 3 3 1 1 1 . . 1 1 . . . . Corruption Purged 23 | . . . . . . . 2 . . . . 7 . . . . . 2 . . . 5 3 . 1 . . 2 1 . . . . Effects 67 | . . . . . . 16 6 . . . . 17 . . . . . 3 . . 3 5 12 1 2 . . 2 . . . . . Message Errors 20 | . . . . . . 6 1 . . . . 5 . . . . . . . . . 2 5 . . . . 1 . . . . . Matter Fused 4 | . . . . . . 1 . . . . . 1 . . . . . . . . . . 2 . . . . . . . . . . Heat Flow Errors 4 | . . . . . . . . . . . . 2 . . . . . . . . 1 . . . . . . 1 . . . . . Energy Discharges 6 | . . . . . . . 1 . . . . 2 . . . . . . . . . 1 1 . 1 . . . . . . . . Data Loss (minor) 9 | . . . . . . 1 2 . . . . 4 . . . . . 1 . . . . . 1 . . . . . . . . . Targeting Errors 20 | . . . . . . 8 1 . . . . 1 . . . . . 2 . . 2 2 3 . 1 . . . . . . . . Weapon Failures 4 | . . . . . . . 1 . . . . 2 . . . . . . . . . . 1 . . . . . . . . . . Overload Shots 21 | . . . . . . . . . . . . 21 . . . . . . . . . . . . . . . . . . . . . Effects 4 | . . . . . . . . . . . . 4 . . . . . . . . . . . . . . . . . . . . . Energy Bleed 2 | . . . . . . . . . . . . 2 . . . . . . . . . . . . . . . . . . . . . Meltdown 2 | . . . . . . . . . . . . 2 . . . . . . . . . . . . . . . . . . . . . Overflow Damage 15079 | . . . 133 . 139 180 141 . . . . 522 . . 547 1054 108 1419 254 116 1422 285 1361 94 400 194 189 2707 1291 1478 599 446 . Projectiles 12715 | . . . . . 108 15 35 . . . . 273 . . . . 108 1340 254 116 1422 285 1361 94 400 194 189 2707 1291 1478 599 446 . Explosions 1461 | . . . 133 . 31 165 106 . . . . 249 . . . 698 . 79 . . . . . . . . . . . . . . . Melee 903 | . . . . . . . . . . . . . . . 547 356 . . . . . . . . . . . . . . . . . Knockbacks 36 | . . . . 1 15 12 8 . . . . . . . . . . . . . . . . . . . . . . . . . . Impact . | . . . . . . . . . . . . . . . . . . . . . . . . . . . . . . . . . . Kinetic 33 | . . . . 1 13 11 8 . . . . . . . . . . . . . . . . . . . . . . . . . . Secondary 3 | . . . . . 2 1 . . . . . . . . . . . . . . . . . . . . . . . . . . . Self-Inflicted Damage 751 | . . . 206 . 61 116 285 . . . . 26 . . . . . 57 . . . . . . . . . . . . . . . Shots 28 | . . . 6 . 2 8 9 . . . . 1 . . . . . 2 . . . . . . . . . . . . . . . Rammed . | . . . . . . . . . . . . . . . . . . . . . . . . . . . . . . . . . . Targets Rammed . | . . . . . . . . . . . . . . . . . . . . . . . . . . . . . . . . . . Kicked . | . . . . . . . . . . . . . . . . . . . . . . . . . . . . . . . . . . Crushed . | . . . . . . . . . . . . . . . . . . . . . . . . . . . . . . . . . . Highest Temperature 411 | 100 402 . 184 196 47 10 411 69 159 . 184 197 74 138 . 196 . . . . 91 . . . . . . 44 142 198 199 202 158 Average Temperature 61 | 41 177 . 21 92 14 4 53 33 61 . 66 49 37 65 . 56 . . . . 60 . . . . . . 44 60 98 101 104 85 Received Heat Transfer 6267 | . 501 189 375 105 315 396 1383 9 45 . 84 651 . 66 . 797 108 165 . . 495 9 258 9 . . . 99 37 54 63 54 . Effects 7 | . 4 . . . . . 3 . . . . . . . . . . . . . . . . . . . . . . . . . . Shutdowns 1 | . . . . . . . 1 . . . . . . . . . . . . . . . . . . . . . . . . . . Energy Bleed 2 | . 1 . . . . . 1 . . . . . . . . . . . . . . . . . . . . . . . . . . Interference 3 | . 3 . . . . . . . . . . . . . . . . . . . . . . . . . . . . . . . . Short Circuit 1 | . . . . . . . 1 . . . . . . . . . . . . . . . . . . . . . . . . . . Siege Activations . | . . . . . . . . . . . . . . . . . . . . . . . . . . . . . . . . . . Robots Corrupted 4 | . . . 1 . . 2 1 . . . . . . . . . . . . . . . . . . . . . . . . . . Combat Hostiles 4 | . . . 1 . . 2 1 . . . . . . . . . . . . . . . . . . . . . . . . . . Parts Fried 37 | . . . 17 1 7 5 6 . . . . . . . . . . . . . 1 . . . . . . . . . . . . Impact Corruptions . | . . . . . . . . . . . . . . . . . . . . . . . . . . . . . . . . . . Robots Melted 2 | . . . . . . . . . . . . 2 . . . . . . . . . . . . . . . . . . . . . Combat Hostiles 2 | . . . . . . . . . . . . 2 . . . . . . . . . . . . . . . . . . . . . Parts Melted 47 | 1 . . 1 . . 1 7 . . . 1 10 . . . 4 1 3 . 1 5 . 4 . . . . 4 3 . . 1 . Heat Transferred 63290 | 703 2960 74 1050 150 200 700 6923 415 585 . 985 9661 360 275 . 3595 1175 4125 375 500 5296 1025 5025 450 425 200 575 4761 3322 2900 1550 2900 50 Parts Sabotaged . | . . . . . . . . . . . . . . . . . . . . . . . . . . . . . . . . . . Parts Stolen . | . . . . . . . . . . . . . . . . . . . . . . . . . . . . . . . . . . Parts Stripped . | . . . . . . . . . . . . . . . . . . . . . . . . . . . . . . . . . . Power Chain Reactions 30 | . . . 11 1 3 12 2 . . . . 1 . . . . . . . . . . . . . . . . . . . . . Missiles Intercepted . | . . . . . . . . . . . . . . . . . . . . . . . . . . . . . . . . . . Alert | -11 -10 -10 -9 -9 -8 -8 -7 -7 -7 -7 -6 -6 -6 -6 -6 -6 -5 -5 -5 -5 -5 -4 -4 -4 -4 -4 -3 -3 -3 -2 -2 -2 -1 ------- Run | Scr Mat Min Mat Min Mat Sto Fac Low Low Dat Pro Fac Low Low Zio Dee Pro Fac Upp Upp War Pro Fac Upp Upp Zhi Pro Res Tes Res Qua Sec Acc Peak Influence 2000 | 25 528 522 782 355 1021 1160 1806 . . . . 1832 . . . . . 1189 . . . . 612 . . . . 1040 779 513 434 2000 1712 Average Influence 545 | 15 309 326 516 234 614 732 965 . . . . 927 . . . . . 437 . . . . 202 . . . . 433 542 214 145 183 1540 Maximum Alert Level 5 | . 2 2 3 1 3 4 5 . . . . 5 . . . . . 4 . . . . 2 . . . . 3 3 2 2 5 5 Low Security (%) 20 | 100 18 11 4 33 3 6 . . . . . . . . . . . 29 . . . . 50 . . . . 22 . 39 73 80 . Level 1 19 | . 52 50 17 66 9 7 7 . . . . 2 . . . . . 15 . . . . 37 . . . . 19 23 43 18 16 . Level 2 31 | . 28 37 64 . 61 21 31 . . . . 27 . . . . . 35 . . . . 11 . . . . 38 44 17 8 . . Level 3 19 | . . . 13 . 25 51 25 . . . . 45 . . . . . 17 . . . . . . . . . 19 32 . . . . Level 4 6 | . . . . . . 13 22 . . . . 16 . . . . . 2 . . . . . . . . . . . . . . 21 Level 5 1 | . . . . . . . 8 . . . . 2 . . . . . . . . . . . . . . . . . . . . . High Security 1 | . . . . . . . 5 . . . . 4 . . . . . . . . . . . . . . . . . . . . . Max Security . | . . . . . . . . . . . . . . . . . . . . . . . . . . . . . . . . 3 78 Squads Dispatched 232 | . 8 1 12 1 17 14 38 . 1 . . 43 . . . . . 28 . . . . 16 . . . . 21 13 3 3 7 6 Investigation 124 | . 8 1 11 1 13 12 20 . 1 . . 23 . . . . . 18 . . . . 7 . . . . 4 4 . 1 . . Extermination 22 | . . . . . . . 3 . . . . 3 . . . . . 3 . . . . 5 . . . . 4 1 1 1 1 . Reinforcement 30 | . . . . . 3 . 5 . . . . 5 . . . . . 5 . . . . . . . . . 5 5 1 1 . . Assault 35 | . . . 1 . 1 2 8 . . . . 6 . . . . . 2 . . . . . . . . . 1 2 . . 6 6 Garrison 21 | . . . . . . . 2 . . . . 6 . . . . . . . . . . 4 . . . . 7 1 1 . . . Intercept . | . . . . . . . . . . . . . . . . . . . . . . . . . . . . . . . . . . Construction Impeded 2 | . . . . . . . . . . . . . . . . . . 2 . . . . . . . . . . . . . . . Haulers Reinforced 11 | . . . . . . . 1 . . . . 4 . . . . . 2 . . . . . . . . . 4 . . . . . Stealth | -11 -10 -10 -9 -9 -8 -8 -7 -7 -7 -7 -6 -6 -6 -6 -6 -6 -5 -5 -5 -5 -5 -4 -4 -4 -4 -4 -3 -3 -3 -2 -2 -2 -1 --------- Run | Scr Mat Min Mat Min Mat Sto Fac Low Low Dat Pro Fac Low Low Zio Dee Pro Fac Upp Upp War Pro Fac Upp Upp Zhi Pro Res Tes Res Qua Sec Acc Distress Signals 32 | . . . 1 . 3 . 2 . . . . 2 . . . . . 3 . . . . 5 . . . . 3 . 4 3 4 2 Communications Jammed . | . . . . . . . . . . . . . . . . . . . . . . . . . . . . . . . . . . Distress Signals . | . . . . . . . . . . . . . . . . . . . . . . . . . . . . . . . . . . Times Spotted 1218 | . 31 17 67 11 53 74 128 3 12 . 18 113 3 3 . 59 17 58 4 4 116 18 89 5 7 . 7 84 53 46 35 75 8 Peak Tracking Total 37 | . 6 3 7 3 5 13 7 1 7 . 5 7 1 3 . 37 7 5 2 3 20 8 6 2 3 . 4 7 10 11 6 26 14 Tactical Retreats 38 | . 2 1 . . 2 3 6 . . . . 5 . . . 3 . 2 . . 4 . 4 . . . . 1 1 2 1 1 . Traps | -11 -10 -10 -9 -9 -8 -8 -7 -7 -7 -7 -6 -6 -6 -6 -6 -6 -5 -5 -5 -5 -5 -4 -4 -4 -4 -4 -3 -3 -3 -2 -2 -2 -1 ------- Run | Scr Mat Min Mat Min Mat Sto Fac Low Low Dat Pro Fac Low Low Zio Dee Pro Fac Upp Upp War Pro Fac Upp Upp Zhi Pro Res Tes Res Qua Sec Acc Traps Triggered 15 | . 1 . . . . 1 2 . . . . 2 . . . . . 4 . . . . 4 . . . . . 1 . . . . Indirectly . | . . . . . . . . . . . . . . . . . . . . . . . . . . . . . . . . . . Trap Hack Attempts . | . . . . . . . . . . . . . . . . . . . . . . . . . . . . . . . . . . Triggered . | . . . . . . . . . . . . . . . . . . . . . . . . . . . . . . . . . . Disarmed 13 | . . . 1 . . . . . . . . 6 . . . . . . . . . . 2 . . . . 4 . . . . . Reprogrammed 60 | . . . . . 4 8 6 . . . . . . . . . . . . . . . 20 . . . . 18 . . . . 4 Reused 8 | . . . . . 1 . 1 . . . . . . . . . . . . . . . 3 . . . . 3 . . . . . Traps Extracted . | . . . . . . . . . . . . . . . . . . . . . . . . . . . . . . . . . . Installed 5 | . . . . . . . . 1 4 . . . . . . . . . . . . . . . . . . . . . . . . Triggered 19 | . . . . . 1 . 1 . 1 . . . . . . . 2 . . . 7 . 3 1 . . . 3 . . . . . Machines | -11 -10 -10 -9 -9 -8 -8 -7 -7 -7 -7 -6 -6 -6 -6 -6 -6 -5 -5 -5 -5 -5 -4 -4 -4 -4 -4 -3 -3 -3 -2 -2 -2 -1 ---------- Run | Scr Mat Min Mat Min Mat Sto Fac Low Low Dat Pro Fac Low Low Zio Dee Pro Fac Upp Upp War Pro Fac Upp Upp Zhi Pro Res Tes Res Qua Sec Acc Machines Disabled 123 | . . . 6 . 5 9 17 . 1 . . 11 . . . 2 1 10 . . 2 1 5 1 1 . . . 9 1 5 34 2 Max in Single Turn 24 | . . . 4 . 2 1 5 . 1 . . 2 . . . 1 1 4 . . 1 1 1 1 1 . . . 1 1 1 24 2 Garrison Access 12 | . . . . . . 1 2 . . . . 2 . . . . . 1 . . . . 1 . . . . . 1 2 1 1 . Machines Sabotaged 1 | . . 1 . . . . . . . . . . . . . . . . . . . . . . . . . . . . . . . Garrisons Compromised . | . . . . . . . . . . . . . . . . . . . . . . . . . . . . . . . . . . Overloaded Fab Kills . | . . . . . . . . . . . . . . . . . . . . . . . . . . . . . . . . . . Fab Network Shutdowns 5 | . . . . . . . 1 . . . . 1 . . . . . 1 . . . . 1 . . . . 1 . . . . . Hacking | -11 -10 -10 -9 -9 -8 -8 -7 -7 -7 -7 -6 -6 -6 -6 -6 -6 -5 -5 -5 -5 -5 -4 -4 -4 -4 -4 -3 -3 -3 -2 -2 -2 -1 --------- Run | Scr Mat Min Mat Min Mat Sto Fac Low Low Dat Pro Fac Low Low Zio Dee Pro Fac Upp Upp War Pro Fac Upp Upp Zhi Pro Res Tes Res Qua Sec Acc Machines Accessed 274 | . 10 1 16 1 14 17 26 . 1 4 . 31 . . 1 . . 29 . 1 6 . 30 . 2 9 1 23 11 9 13 17 1 Terminals 177 | . 8 1 11 . 9 14 14 . 1 . . 19 . . . . . 20 . 1 . . 20 . . . 1 17 6 6 12 16 1 Fabricators 14 | . . . . . . . 3 . . . . 2 . . . . . 1 . . . . 3 . . . . 2 2 1 . . . Repair Stations 4 | . . . 1 . . . 1 . . . . . . . . . . 1 . . . . . . . . . . 1 . . . . Recycling Units 17 | . 2 . 2 . 2 2 4 . . . . 3 . . . . . 1 . . . . 1 . . . . . . . . . . Scanalyzers 19 | . . . 2 . 2 . 2 . . . . 4 . . . . . 4 . . . . 3 . . . . 1 1 . . . . Garrison Access 20 | . . . . . 1 1 2 . . . . 3 . . . . . 2 . . . . 3 . . . . 3 1 2 1 1 . Total Hacks 1198 | . 45 3 98 1 59 88 119 . 6 27 . 113 . . 3 . . 148 . 6 14 . 121 . 2 47 10 97 39 45 57 48 2 Successful 901 | . 38 3 84 1 51 82 79 . 6 27 . 72 . . 3 . . 91 . 4 14 . 92 . 2 47 9 71 21 24 39 40 1 Failed 297 | . 7 . 14 . 8 6 40 . . . . 41 . . . . . 57 . 2 . . 29 . . . 1 26 18 21 18 8 1 Catastrophic 44 | . . . . . . . 9 . . . . 8 . . . . . 13 . . . . 2 . . . . 8 . 1 2 1 . Database Lockouts . | . . . . . . . . . . . . . . . . . . . . . . . . . . . . . . . . . . Manual 835 | . 41 2 73 . 44 77 85 . 1 . . 83 . . . . . 125 . 5 1 . 81 . . . 4 72 24 29 53 35 . Terminals 857 | . 40 3 76 . 41 80 77 . 6 . . 74 . . . . . 120 . 6 . . 90 . . . 10 76 24 29 56 47 2 Fabricators 71 | . . . . . . . 15 . . . . 7 . . . . . 7 . . . . 16 . . . . 9 9 8 . . . Repair Stations 8 | . . . 2 . . . 2 . . . . . . . . . . 2 . . . . . . . . . . 2 . . . . Recycling Units 38 | . 5 . 8 . 4 4 11 . . . . 4 . . . . . 1 . . . . 1 . . . . . . . . . . Scanalyzers 73 | . . . 12 . 10 . 7 . . . . 17 . . . . . 13 . . . . 9 . . . . 4 1 . . . . Garrison Access 57 | . . . . . 4 4 7 . . . . 11 . . . . . 5 . . . . 5 . . . . 8 3 8 1 1 . Terminal Hacks 481 | . 24 1 46 1 23 57 31 . 6 27 . 19 . . 3 . . 43 . 4 14 . 39 . 2 47 9 29 7 10 23 15 1 Record 68 | . . . . . . . . . 5 11 . . . . . . . . . 1 7 . . . 1 36 6 . . . 1 . . Part Schematic 49 | . 3 . 2 . 3 3 8 . . 8 . 3 . . 3 . . 7 . . . . 1 . . 4 . 4 . . . . . Robot Schematic 9 | . 2 . . . . 1 . . . 5 . . . . . . . . . . . . 1 . . . . . . . . . . Robot Analysis 110 | . 13 . 8 . 7 . 15 . . . . 10 . . . . . 20 . . . . 9 . . 3 . 7 . . 16 2 . Prototype ID Bank 97 | . 6 . 28 . 6 37 . . . 3 . . . . . . . 1 . . 5 . 7 . . 4 . . . . . . . Open Door 12 | . . . . 1 . 4 . . . . . . . . . . . . . . 2 . . . 1 . . . . . 1 3 . Branch Access Points 1 | . . . . . . . . . . . . . . . . . . . . . . . . . . . . . . 1 . . . Machine Index 4 | . . . . . . . . . . . . . . . . . . 1 . . . . 1 . . . . 1 . 1 . . . Garrison Index 1 | . . . . . . . . . . . . . . . . . . . . . . . . . . . . . . . . 1 . Alert Level 9 | . . . 1 . . 1 . . . . . 1 . . . . . 3 . . . . 1 . . . . 1 . . 1 . . Unreport Threat 72 | . . . 3 . 4 5 5 . 1 . . 4 . . . . . 8 . 3 . . 9 . . . 3 7 2 7 4 7 . Locate Traps 3 | . . . 1 . . 1 . . . . . . . . . . . . . . . . . . . . . . . . . 1 . Disarm Traps 6 | . . . 1 . . 1 . . . . . 1 . . . . . . . . . . 1 . . . . 2 . . . . . Reprogram Traps 17 | . . . . . 2 4 2 . . . . . . . . . . . . . . . 5 . . . . 3 . . . . 1 Maintenance Status 1 | . . . 1 . . . . . . . . . . . . . . . . . . . . . . . . . . . . . . Transport Status 4 | . . . . . . . . . . . . . . . . . . 1 . . . . . . . . . 3 . . . . . Recall Investigation 1 | . . . . . . . . . . . . . . . . . . . . . . . 1 . . . . . . . . . . Recall Extermination 3 | . . . . . . . . . . . . . . . . . . 1 . . . . 2 . . . . . . . . . . Recall Reinforcements 2 | . . . . . . . . . . . . . . . . . . . . . . . . . . . . . 2 . . . . Hauler Manifests 7 | . . . 1 . 1 . 1 . . . . . . . . . . 1 . . . . 1 . . . . 1 . 1 . . . Zone Layout 1 | . . 1 . . . . . . . . . . . . . . . . . . . . . . . . . . . . . . . Protovariant Controls 3 | . . . . . . . . . . . . . . . . . . . . . . . . . . . . . 3 . . . . Activate Exoskeleton 1 | . . . . . . . . . . . . . . . . . . . . . . . . . . . . . . . . 1 . Fabricator Hacks 44 | . . . . . . . 10 . . . . 4 . . . . . 5 . . . . 12 . . . . 6 3 4 . . . Network Status 1 | . . . . . . . . . . . . 1 . . . . . . . . . . . . . . . . . . . . . Load Schematic 18 | . . . . . . . 4 . . . . 1 . . . . . 1 . . . . 5 . . . . 3 2 2 . . . Build 25 | . . . . . . . 6 . . . . 2 . . . . . 4 . . . . 7 . . . . 3 1 2 . . . Repair Station Hacks 8 | . . . 2 . . . 2 . . . . . . . . . . 2 . . . . . . . . . . 2 . . . . Scan Component 4 | . . . 1 . . . 1 . . . . . . . . . . 1 . . . . . . . . . . 1 . . . . Repair 4 | . . . 1 . . . 1 . . . . . . . . . . 1 . . . . . . . . . . 1 . . . . Recycling Unit Hacks 20 | . 2 . 2 . 2 2 6 . . . . 4 . . . . . 1 . . . . 1 . . . . . . . . . . Report Inventory 16 | . 2 . 2 . 2 2 3 . . . . 3 . . . . . 1 . . . . 1 . . . . . . . . . . Retrieve Components 4 | . . . . . . . 3 . . . . 1 . . . . . . . . . . . . . . . . . . . . . Scanalyzer 55 | . . . 10 . 8 . 4 . . . . 12 . . . . . 7 . . . . 9 . . . . 4 1 . . . . Insert Component 29 | . . . 5 . 4 . 2 . . . . 6 . . . . . 4 . . . . 5 . . . . 2 1 . . . . Analyze 26 | . . . 5 . 4 . 2 . . . . 6 . . . . . 3 . . . . 4 . . . . 2 . . . . . Garrison Access Hacks 13 | . . . . . 1 1 2 . . . . 2 . . . . . 1 . . . . 1 . . . . . 1 2 1 1 . Unlock Access 1 | . . . . . 1 . . . . . . . . . . . . . . . . . . . . . . . . . . . . Seal Access 12 | . . . . . . 1 2 . . . . 2 . . . . . 1 . . . . 1 . . . . . 1 2 1 1 . Unauthorized Hacks 279 | . 12 2 24 . 17 22 24 . . . . 31 . . . . . 32 . . . . 30 . . . . 31 7 8 15 24 . Terminals 205 | . 9 2 16 . 10 17 13 . . . . 19 . . . . . 24 . . . . 24 . . . . 20 6 6 15 24 . Track 4 | . . . 1 . . . . . . . . . . . . . . . . . . . . . . . . . . . . 3 . Assimilate 23 | . . . 3 . 1 1 . . . . . 4 . . . . . 5 . . . . 3 . . . . 3 . . 3 . . Botnet 149 | . 8 . 10 . 7 13 13 . . . . 15 . . . . . 17 . . . . 20 . . . . 16 5 5 9 11 . Detonate 2 | . . 1 . . . . . . . . . . . . . . . . . . . . . . . . . . . . . 1 . Disrupt 20 | . 1 . 1 . 2 2 . . . . . . . . . . . 1 . . . . . . . . . . 1 . 3 9 . Operators 6 | . . . 1 . . 1 . . . . . . . . . . . 1 . . . . 1 . . . . 1 . 1 . . . Sabotage 1 | . . 1 . . . . . . . . . . . . . . . . . . . . . . . . . . . . . . . Fabricators 18 | . . . . . . . 4 . . . . 2 . . . . . 2 . . . . 4 . . . . 3 1 2 . . . Report 6 | . . . . . . . 1 . . . . 1 . . . . . 1 . . . . 1 . . . . 1 . 1 . . . Siphon 12 | . . . . . . . 3 . . . . 1 . . . . . 1 . . . . 3 . . . . 2 1 1 . . . Repair Stations . | . . . . . . . . . . . . . . . . . . . . . . . . . . . . . . . . . . Recycling Units 17 | . 3 . 6 . 2 2 4 . . . . . . . . . . . . . . . . . . . . . . . . . . Monitor 1 | . . . 1 . . . . . . . . . . . . . . . . . . . . . . . . . . . . . . Reject 2 | . 1 . 1 . . . . . . . . . . . . . . . . . . . . . . . . . . . . . . Recyclers 1 | . . . 1 . . . . . . . . . . . . . . . . . . . . . . . . . . . . . . Mask 1 | . . . 1 . . . . . . . . . . . . . . . . . . . . . . . . . . . . . . Tunnel 12 | . 2 . 2 . 2 2 4 . . . . . . . . . . . . . . . . . . . . . . . . . . Scanalyzers 14 | . . . 2 . 2 . 2 . . . . 4 . . . . . 4 . . . . . . . . . . . . . . . Extract 14 | . . . 2 . 2 . 2 . . . . 4 . . . . . 4 . . . . . . . . . . . . . . . Garrison Access 25 | . . . . . 3 3 1 . . . . 6 . . . . . 2 . . . . 2 . . . . 8 . . . . . Reprogram 25 | . . . . . 3 3 1 . . . . 6 . . . . . 2 . . . . 2 . . . . 8 . . . . . Data Cores Recovered 2 | . . . . . . . . . . . . . . . . . . 1 . . . . . . . . . . . . . 1 . Used 1 | . . . . . . . . . . . . . . . . . . 1 . . . . . . . . . . . . . . . Hacking Detections 211 | . 10 1 14 . 11 14 24 . 1 . . 28 . . . . . 25 . 1 . . 22 . . . 1 20 9 9 10 10 1 Full Trace Events 100 | . 8 . 11 . 9 13 14 . 1 . . 18 . . . . . 14 . . . . 5 . . . . 3 3 . 1 . . Feedback Events 10 | . . . . . 1 1 2 . . . . 3 . . . . . 1 . . . . 1 . . . . . 1 . . . . Corruption 5 | . . . . . 1 1 . . . . . 1 . . . . . 1 . . . . 1 . . . . . . . . . . Hackware Fried 5 | . . . . . . . 2 . . . . 2 . . . . . . . . . . . . . . . . 1 . . . . Feedback Blocked . | . . . . . . . . . . . . . . . . . . . . . . . . . . . . . . . . . . Robot Schematics Acquired 9 | . 2 . . . . 1 . . . 5 . . . . . . . . . . . . 1 . . . . . . . . . . Robots Built . | . . . . . . . . . . . . . . . . . . . . . . . . . . . . . . . . . . Matter . | . . . . . . . . . . . . . . . . . . . . . . . . . . . . . . . . . . Time . | . . . . . . . . . . . . . . . . . . . . . . . . . . . . . . . . . . Total Robot Build Rating . | . . . . . . . . . . . . . . . . . . . . . . . . . . . . . . . . . . Part Schematics Acquired 134 | . 3 . 11 . 19 3 18 . . 8 . 30 . . 3 . . 25 . . . . 4 . . 4 . 6 . . . . . Parts Built 22 | . . . . . . . 6 . . . . 2 . . . . . 3 . . . . 6 . . . . 2 1 2 . . . Matter 4939 | . . . . . . . 835 . . . . 426 . . . . . 714 . . . . 1428 . . . . 624 312 600 . . . Time 2486 | . . . . . . . 357 . . . . 304 . . . . . 507 . . . . 846 . . . . 148 111 213 . . . Total Part Build Rating 134 | . . . . . . . 26 . . . . 10 . . . . . 18 . . . . 36 . . . . 18 9 17 . . . Parts Repaired 4 | . . . 1 . . . 1 . . . . . . . . . . 1 . . . . . . . . . . 1 . . . . Time 278 | . . . 44 . . . 44 . . . . . . . . . . 78 . . . . . . . . . . 112 . . . . Parts Recycled . | . . . . . . . . . . . . . . . . . . . . . . . . . . . . . . . . . . Recycled Matter . | . . . . . . . . . . . . . . . . . . . . . . . . . . . . . . . . . . Retrieved Matter . | . . . . . . . . . . . . . . . . . . . . . . . . . . . . . . . . . . Retrieved Components 14 | . . . . . . . 12 . . . . 2 . . . . . . . . . . . . . . . . . . . . . Parts Scanalyzed 22 | . . . 5 . 4 . 2 . . . . 3 . . . . . 3 . . . . 3 . . . . 2 . . . . . Part Schematics Acquired 22 | . . . 5 . 4 . 1 . . . . 4 . . . . . 3 . . . . 3 . . . . 2 . . . . . Parts Damaged 3 | . . . 1 . . . . . . . . . . . . . . 2 . . . . . . . . . . . . . . . Bothacking | -11 -10 -10 -9 -9 -8 -8 -7 -7 -7 -7 -6 -6 -6 -6 -6 -6 -5 -5 -5 -5 -5 -4 -4 -4 -4 -4 -3 -3 -3 -2 -2 -2 -1 ------------ Run | Scr Mat Min Mat Min Mat Sto Fac Low Low Dat Pro Fac Low Low Zio Dee Pro Fac Upp Upp War Pro Fac Upp Upp Zhi Pro Res Tes Res Qua Sec Acc Used RIF Installer . | . . . . . . . . . . . . . . . . . . . . . . . . . . . . . . . . . . Robots Hacked 6 | . . . . . . . . . . 1 2 . . . 2 1 . . . . . . . . . . . . . . . . . Non-combat . | . . . . . . . . . . . . . . . . . . . . . . . . . . . . . . . . . . Combat 6 | . . . . . . . . . . 1 2 . . . 2 1 . . . . . . . . . . . . . . . . . Robot Hacks Applied 6 | . . . . . . . . . . 1 2 . . . 2 1 . . . . . . . . . . . . . . . . . parse_system 6 | . . . . . . . . . . 1 2 . . . 2 1 . . . . . . . . . . . . . . . . . Relay Couplers Released 3 | . . . . . . . . . . . . . . . . . . . . . . . 2 . . . . 1 . . . . . Programmers 3 | . . . . . . . . . . . . . . . . . . . . . . . 2 . . . . 1 . . . . . Robots Rewired 9 | . . . . . . . . . . . 1 . . . . . 2 . . . . 2 . 4 . . . . . . . . . Allies Hacked 5 | . . . . . . . . . . . . . . . . . . . . . . . 4 . . . . 1 . . . . . Hacks Repelled 2 | . . . . . . . . . . . . . . . . . . . . . 2 . . . . . . . . . . . . Allies | -11 -10 -10 -9 -9 -8 -8 -7 -7 -7 -7 -6 -6 -6 -6 -6 -6 -5 -5 -5 -5 -5 -4 -4 -4 -4 -4 -3 -3 -3 -2 -2 -2 -1 -------- Run | Scr Mat Min Mat Min Mat Sto Fac Low Low Dat Pro Fac Low Low Zio Dee Pro Fac Upp Upp War Pro Fac Upp Upp Zhi Pro Res Tes Res Qua Sec Acc Total Allies 92 | . . 3 3 2 4 18 2 . . . 2 15 . . . . 2 8 . . . 2 8 4 . . . 13 . . 2 1 3 Largest Group 14 | . . 3 5 6 6 14 3 . . . 2 6 3 3 3 3 2 5 4 4 4 2 4 8 8 8 8 10 9 4 6 5 2 Highest-Rated Group 1207 | . . 40 60 93 93 246 46 . . . 124 237 87 87 87 87 79 166 72 72 72 96 164 272 272 272 272 505 479 97 185 1207 1190 Highest-Rated Ally 1075 | . . 16 16 31 31 29 16 . . . 94 94 29 29 29 29 49 49 26 26 26 49 90 49 49 49 49 90 90 44 44 1075 1075 Total Orders 381 | . . . 25 6 32 19 4 2 2 . . 12 . . . . 6 47 15 6 12 . 59 4 7 1 7 55 17 13 16 14 . STAY 86 | . . . 8 2 10 3 1 1 1 . . 3 . . . . 3 12 2 . 1 . 11 1 4 1 1 12 4 . 3 2 . GOTO 133 | . . . 5 1 7 5 2 . . . . 4 . . . . . 15 4 4 10 . 25 1 . . 3 19 6 7 8 7 . FOLLOW 162 | . . . 12 3 15 11 1 1 1 . . 5 . . . . 3 20 9 2 1 . 23 2 3 . 3 24 7 6 5 5 . Ally Attacks 543 | . . . 7 2 76 161 29 . . . 3 54 . . . 5 . 31 . . . . 60 . . . . 101 11 . . 1 2 Total Damage 11776 | . . . 64 20 1262 2301 231 . . . 138 1949 . . . 55 . 637 . . . . 1711 . . . . 2834 387 . . 60 127 Kills 82 | . . . 1 1 18 17 2 . . . 2 9 . . . . . 4 . . . . 13 . . . . 12 3 . . . . Allies Corrupted 8 | . . . . . 1 . . . . . . . . . . . . . . . 5 . 1 . . . . 1 . . . . . Allies Melted . | . . . . . . . . . . . . . . . . . . . . . . . . . . . . . . . . . . Intel | -11 -10 -10 -9 -9 -8 -8 -7 -7 -7 -7 -6 -6 -6 -6 -6 -6 -5 -5 -5 -5 -5 -4 -4 -4 -4 -4 -3 -3 -3 -2 -2 -2 -1 ------- Run | Scr Mat Min Mat Min Mat Sto Fac Low Low Dat Pro Fac Low Low Zio Dee Pro Fac Upp Upp War Pro Fac Upp Upp Zhi Pro Res Tes Res Qua Sec Acc Robot Analysis Total 110 | . 13 . 8 . 7 . 15 . . . . 10 . . . . . 20 . . . . 9 . . 3 . 7 . . 16 2 . Derelict Logs Recovered 15 | . . . . 1 . . . 1 1 . 2 . . 1 1 . 1 . 2 1 . 2 . 1 1 . . . . . . . . Drone Launches 41 | . . . . . . 16 . . . . . 2 . . . . 3 10 . . . . 3 . . . . 4 . 3 . . . Drone Recoveries . | . . . . . . . . . . . . . . . . . . . . . . . . . . . . . . . . . . Exploration | -11 -10 -10 -9 -9 -8 -8 -7 -7 -7 -7 -6 -6 -6 -6 -6 -6 -5 -5 -5 -5 -5 -4 -4 -4 -4 -4 -3 -3 -3 -2 -2 -2 -1 ------------- Run | Scr Mat Min Mat Min Mat Sto Fac Low Low Dat Pro Fac Low Low Zio Dee Pro Fac Upp Upp War Pro Fac Upp Upp Zhi Pro Res Tes Res Qua Sec Acc Turns Passed 26350 | 156 623 567 1623 243 1028 712 2633 250 268 122 331 2654 273 291 325 1612 371 1982 255 220 1091 407 2460 323 285 103 293 2078 985 579 441 697 69 Spaces Moved 38648 | 102 592 770 1977 377 1386 983 3578 584 601 134 667 3915 586 790 868 2156 740 2970 561 542 1049 418 3052 403 403 185 407 3573 1276 593 689 1526 195 Core 61 | 61 . . . . . . . . . . . . . . . . . . . . . . . . . . . . . . . . . Treads . | . . . . . . . . . . . . . . . . . . . . . . . . . . . . . . . . . . Legs . | . . . . . . . . . . . . . . . . . . . . . . . . . . . . . . . . . . Wheels 98 | 41 57 . . . . . . . . . . . . . . . . . . . . . . . . . . . . . . . . Hover 37598 | . . 430 1961 377 1386 983 3578 584 601 134 667 3915 586 790 868 2156 740 2970 561 542 1049 418 3052 403 403 185 407 3573 1276 593 689 1526 195 Flight 891 | . 535 340 16 . . . . . . . . . . . . . . . . . . . . . . . . . . . . . . Fastest Speed 14 | 50 34 34 29 43 33 33 31 31 31 31 31 30 30 30 30 30 31 14 30 30 30 30 14 30 30 30 30 14 14 14 14 14 14 Average Speed 33 | 96 39 44 50 43 39 33 32 31 31 31 31 30 30 30 30 30 31 30 30 30 30 61 34 30 30 30 30 29 33 29 29 30 29 Slowest Speed 150 | 150 80 58 116 43 43 33 34 31 31 31 31 34 30 30 30 98 31 97 30 30 84 84 80 30 30 30 30 30 84 30 30 80 80 Overloaded Moves 154 | . . . . . . . . . . . . . . . . . . 21 . . . . 24 . . . . 19 16 11 29 21 13 Propulsion Burnouts . | . . . . . . . . . . . . . . . . . . . . . . . . . . . . . . . . . . Robots Hopped 11 | . 4 7 . . . . . . . . . . . . . . . . . . . . . . . . . . . . . . . Cave-ins Triggered 2 | . . . . . 1 1 . . . . . . . . . . . . . . . . . . . . . . . . . . . Teleports 2 | . . . . . . . . . . . . . . . . . . . . . . . . . . 1 . . . . . 1 . Exploration Rate (%) 75 | 5 91 97 97 85 94 87 73 82 74 75 87 95 79 91 85 89 90 73 91 88 87 59 76 71 63 62 62 79 94 19 68 75 7 Regions Visited 33 Branch Regions 23 Pre-discovered Areas 21 | . 2 1 2 1 2 2 4 1 . 1 . . . . . . . . 1 . . . . . . 3 1 . . . . . . Known Exits Taken 33 | 1 1 1 1 1 1 1 1 1 1 1 1 1 1 1 1 1 1 1 1 1 1 1 1 1 1 1 1 1 1 1 1 1 . Unknown Exits Taken . | . . . . . . . . . . . . . . . . . . . . . . . . . . . . . . . . . . Scrap Searched 38 | . . . . . . . . 3 2 . 1 . 3 2 5 . 4 . 2 4 . 1 . 5 3 . 3 . . . . . . Spaces Dug 63 | . . . 5 . 4 . 1 . . . . 7 . . 2 . . 9 2 . 12 . 4 . . . . 4 . . 2 11 . Terrain Destroyed 866 | . . . 96 11 77 55 135 . . . . 110 . . 2 12 11 137 11 3 40 10 18 . . . . 10 4 7 22 83 12 Melee 15 | . . . 5 . . . 1 . . . . 7 . . 2 . . . . . . . . . . . . . . . . . . Projectile 332 | . . . . 11 32 16 8 . . . . 4 . . . 1 11 29 11 3 40 10 18 . . . . 10 4 7 22 83 12 AOE 519 | . . . 91 . 45 39 126 . . . . 99 . . . 11 . 108 . . . . . . . . . . . . . . . Actions | -11 -10 -10 -9 -9 -8 -8 -7 -7 -7 -7 -6 -6 -6 -6 -6 -6 -5 -5 -5 -5 -5 -4 -4 -4 -4 -4 -3 -3 -3 -2 -2 -2 -1 --------- Run | Scr Mat Min Mat Min Mat Sto Fac Low Low Dat Pro Fac Low Low Zio Dee Pro Fac Upp Upp War Pro Fac Upp Upp Zhi Pro Res Tes Res Qua Sec Acc Total 49586 | 131 817 902 2386 426 1669 1201 4633 628 644 212 748 5017 670 832 912 2942 834 3910 625 581 1599 528 4461 603 565 230 577 4582 1836 995 926 1760 204 Wait 6714 | . 90 40 171 16 94 55 646 21 8 76 11 685 66 28 12 499 40 748 46 28 252 21 1085 161 136 30 139 711 260 303 155 78 3 Move 38592 | 101 583 755 1976 376 1385 982 3577 583 600 133 666 3914 585 789 867 2155 739 2969 560 541 1048 417 3051 402 402 184 406 3572 1275 592 688 1525 194 Hop 11 | . 4 7 . . . . . . . . . . . . . . . . . . . . . . . . . . . . . . . Pick Up 80 | 1 6 . 10 1 3 . 5 . . . 1 5 3 1 3 9 . 8 . . 2 . 3 . . . 1 5 5 2 2 4 . Fast Attach 203 | 7 7 4 16 3 5 3 10 . . . . 28 . . 1 25 1 12 . . 19 1 8 . 2 3 . 14 20 . 3 11 . Attach 43 | . 1 . 8 . 3 . 3 . . . . 3 1 . 1 2 . 2 . . . 1 4 . . . . 2 3 2 2 5 . Detach 63 | . . 1 8 1 5 1 3 . . . . 4 . . 1 15 1 1 . . 3 . 7 . . . . 2 5 1 2 2 . Swap 137 | . 2 7 13 . 7 9 12 1 4 2 2 19 . . 6 10 1 10 . . 3 4 7 1 1 . . 4 2 2 4 3 1 Drop 240 | . 9 7 19 4 12 5 15 . . . . 31 2 1 4 32 1 15 . . 20 . 13 . 1 1 1 17 20 1 3 6 . Fire 2406 | 22 87 62 100 16 106 85 259 15 22 1 28 228 9 8 2 104 30 109 15 12 179 26 221 19 19 8 24 204 163 69 49 99 6 Melee 43 | . 4 . 10 . . . 1 . 1 . . 7 . . 13 7 . . . . . . . . . . . . . . . . . Ram . | . . . . . . . . . . . . . . . . . . . . . . . . . . . . . . . . . . Kick . | . . . . . . . . . . . . . . . . . . . . . . . . . . . . . . . . . . Crush . | . . . . . . . . . . . . . . . . . . . . . . . . . . . . . . . . . . Escape Stasis 59 | . . . . . . . 3 . . . . . . . . . . . . . . . . . . . . . 56 . . . . Rewire 90 | . . . . . . 4 . . . . 21 . . . . . 7 . . . 6 20 18 13 . . . 1 . . . . . Trap 5 | . . . . . . . . 1 4 . . . . . . . . . . . . . . . . . . . . . . . . Miscellaneous 900 | . 24 19 55 9 49 57 99 7 5 . 19 93 4 5 2 84 14 36 4 . 67 38 44 7 4 4 6 50 27 23 18 27 . Route ------- -11/Scrapyard -10/Materials (discovered 5 exits: *Mat x3 / *Min x2) -10/Mines (discovered 3 exits: *Mat x2 / *Exi) -9/Materials (discovered 5 exits: *Mat x3 / *Min x2) -9/Mines (discovered 2 exits: *Mat x2) -8/Materials (discovered 5 exits: *Fac x3 / *Sto / Gar) -8/Storage (discovered 2 exits: *Fac / Rec) -7/Factory (discovered 3 exits: *Fac x2 / *Low) -7/Lower Caves -7/Lower Caves (discovered 2 exits: *Fac / *Dat) -7/Data Miner -6/Proximity Caves -6/Factory (discovered 6 exits: *Fac x4 / *Low x2) -6/Lower Caves -6/Lower Caves (discovered 2 exits: *Fac / *Zio) -6/Zion (discovered 2 exits: *Dee / *Pro) -6/Deep Caves -5/Proximity Caves -5/Factory (discovered 8 exits: *Fac x4 / *Upp x2 / *Ext x2) -5/Upper Caves (discovered 2 exits: *Upp / *War) -5/Upper Caves (discovered 2 exits: *Fac / *War) -5/Warlord -4/Proximity Caves -4/Factory (discovered 6 exits: *Res x4 / *Upp x2) -4/Upper Caves -4/Upper Caves (discovered 2 exits: Res / *Zhi) -4/Zhirov -3/Proximity Caves -3/Research (discovered 6 exits: *Res x3 / *Arm / *Tes x2) -3/Testing -2/Research (discovered 4 exits: Acc x2 / *Qua x2) -2/Quarantine (discovered 2 exits: *Acc / *Sec) -2/Section 7 -1/Access Tau Ceti IV Orbit History --------- Turn | Location | Event 9 | -11/Scrapyard | Identified exit to Materials 9 | -11/Scrapyard | Discovered exit to Materials (range 16) 81 | -11/Scrapyard | Upgraded with Propulsion slot (x1) 81 | -11/Scrapyard | Upgraded with Utility slot (x1) 81 | -11/Scrapyard | Upgraded with Weapon slot (x1) 157 | -11/Scrapyard | Entered Materials 220 | -10/Materials | Identified exit to Mines 220 | -10/Materials | Discovered exit to Mines (range 13) 321 | -10/Materials | Build established: Hacker-Mutant 351 | -10/Materials | Reached level 2 360 | -10/Materials | Upgraded with Propulsion slot (x1) 360 | -10/Materials | Upgraded with Utility slot (x1) 542 | -10/Materials | Identified exit to Materials 542 | -10/Materials | Discovered exit to Materials (range 15) 664 | -10/Materials | Discovered exit to Materials (range 15) 694 | -10/Materials | Discovered exit to Materials (range 12) 748 | -10/Materials | Reached level 3 772 | -10/Materials | Discovered exit to Mines (range 16) 780 | -10/Materials | Entered Mines 787 | -10/Mines | Build established: Scavenger-Mutant 803 | -10/Mines | Met a Derelict bent on vengeance 908 | -10/Mines | Reached level 4 913 | -10/Mines | Found a damaged Exp. Sensor Array with a note attached 913 | -10/Mines | Upgraded with Utility slot (x1) 913 | -10/Mines | Found Prototype Device 913 | -10/Mines | Identified Exp. Sensor Array 922 | -10/Mines | Learned location of Storage (-8) 941 | -10/Mines | Assembled infested the area 954 | -10/Mines | Discovered exit to Materials (range 13) 1250 | -10/Mines | Discovered exit to Materials (range 3) 1251 | -10/Mines | Identified exit to Exiles 1251 | -10/Mines | Discovered exit to Exiles (range 11) 1251 | -10/Mines | Assisted by bots powering up and referring to "LRC-V3" 1290 | -10/Mines | Deemed a non-threat by the Exiles lab entrance 1339 | -10/Mines | Build established: Scavenger-Scout 1347 | -10/Mines | Entered Materials 1347 | -9/Materials | Accompanied by 3 allies 1349 | -9/Materials | Reached level 5 1421 | -9/Materials | Reached level 6 1481 | -9/Materials | Destroyed 7 combat bots 1566 | -9/Materials | Reached level 7 1566 | -9/Materials | Upgraded with Power slot (x1) 1566 | -9/Materials | Upgraded with Propulsion slot (x1) 1566 | -9/Materials | Upgraded with Utility slot (x1) 1622 | -9/Materials | Repaired Broken Imp. Hover Unit? 1654 | -9/Materials | Identified exit to Materials 1654 | -9/Materials | Discovered exit to Materials (range 13) 1735 | -9/Materials | Identified exit to Mines 1735 | -9/Materials | Discovered exit to Mines (range 16) 1747 | -9/Materials | First assault squad dispatched 1831 | -9/Materials | Reached level 8 1861 | -9/Materials | Destroyed 9 combat bots 2259 | -9/Materials | Discovered exit to Mines (range 16) 2347 | -9/Materials | Reached level 9 2457 | -9/Materials | Upgraded with Propulsion slot (x1) 2457 | -9/Materials | Upgraded with Utility slot (x1) 2472 | -9/Materials | Discovered exit to Materials (range 15) 2637 | -9/Materials | Discovered exit to Materials (range 13) 2843 | -9/Materials | Upgraded with Propulsion slot (x1) 2970 | -9/Materials | Entered Mines 2970 | -9/Mines | Accompanied by 5 allies 2972 | -9/Mines | Reached level 10 2972 | -9/Mines | A weapon hastily lodged in a ceiling crevice suddenly fell to the ground 2997 | -9/Mines | Joined a pair of Derelicts in attacking an 0b10 outpost 3010 | -9/Mines | Met a Derelict shopkeep closing up shop 3068 | -9/Mines | Discovered exit to Materials (range 15) 3151 | -9/Mines | Discovered exit to Materials (range 12) 3213 | -9/Mines | Entered Materials 3213 | -8/Materials | Accompanied by 6 allies 3215 | -8/Materials | Reached level 11 3218 | -8/Materials | Led the pair of lost Derelicts to an unsafe place 3249 | -8/Materials | Crushed by falling debris 3249 | -8/Materials | Core integrity fell below 50% 3268 | -8/Materials | Identified exit to Factory 3268 | -8/Materials | Discovered exit to Factory (range 16) 3358 | -8/Materials | Reached level 12 3622 | -8/Materials | Identified exit to Garrison 3740 | -8/Materials | Discovered exit to Factory (range 10) 3784 | -8/Materials | Reached level 13 3847 | -8/Materials | Upgraded with Utility slot (x1) 4013 | -8/Materials | First assault squad dispatched 4073 | -8/Materials | Discovered exit to Factory (range 10) 4134 | -8/Materials | Identified exit to Storage 4134 | -8/Materials | Discovered exit to Storage (range 7) 4145 | -8/Materials | Build established: Hacker-Scout 4241 | -8/Materials | Entered Storage 4241 | -8/Storage | Accompanied by 2 allies 4243 | -8/Storage | Reached level 14 4248 | -8/Storage | Assisted by bots powering up and referring to "LRC-V3" 4488 | -8/Storage | Crushed by falling debris 4626 | -8/Storage | Discovered exit to Factory (range 16) 4641 | -8/Storage | First assault squad dispatched 4665 | -8/Storage | Reached level 15 4668 | -8/Storage | Core integrity fell below 20% 4700 | -8/Storage | Destroyed 9 combat bots 4841 | -8/Storage | Identified exit to Recycling 4841 | -8/Storage | Discovered exit to Recycling (range 16) 4953 | -8/Storage | Entered Factory 4953 | -7/Factory | Accompanied by 7 allies 5020 | -7/Factory | Upgraded with Power slot (x1) 5133 | -7/Factory | Reached level 16 5463 | -7/Factory | Garrison activated, responded to threat 5528 | -7/Factory | Identified exit to Lower Caves 5528 | -7/Factory | Discovered exit to Lower Caves (range 3) 5556 | -7/Factory | Identified exit to Factory 5556 | -7/Factory | Discovered exit to Factory (range 10) 5994 | -7/Factory | Fabricated Cld. Deuterium Engine (x1) 5996 | -7/Factory | Fabricated Imp. Particle Charger? 6051 | -7/Factory | Fabricated Lrn. Terrain Scanner (x1) 6061 | -7/Factory | Fabricated Cld. Deuterium Engine? 6082 | -7/Factory | Fabricated Cld. Deuterium Engine (x1) 6116 | -7/Factory | Reached level 17 6125 | -7/Factory | Hacking Suite fried by hacking feedback 6146 | -7/Factory | Local fabrication network quarantined 6153 | -7/Factory | First assault squad dispatched 6478 | -7/Factory | Repaired Broken Imp. Hover Unit 6808 | -7/Factory | Destroyed 9 combat bots 6909 | -7/Factory | Garrison activated, responded to threat 6991 | -7/Factory | Discovered exit to Factory (range 20) 6995 | -7/Factory | Reached level 18 7004 | -7/Factory | Upgraded with Utility slot (x1) 7166 | -7/Factory | System Shield fried by hacking feedback 7447 | -7/Factory | High security lockdown imminent 7472 | -7/Factory | Build established: Generator-Scout 7476 | -7/Factory | Destroyed 8 combat bots 7527 | -7/Factory | High security lockdown engaged 7586 | -7/Factory | Entered Lower Caves 7586 | -7/Lower Caves | Accompanied by 4 allies 7636 | -7/Lower Caves | Learned location of Zion (-6) 7789 | -7/Lower Caves | Identified exit to Lower Caves 7789 | -7/Lower Caves | Discovered exit to Lower Caves (range 8) 7836 | -7/Lower Caves | Entered another Lower Caves area 7836 | -7/Lower Caves | Accompanied by 4 allies 7874 | -7/Lower Caves | Discovered exit to Factory (range 7) 7909 | -7/Lower Caves | Encountered a Warlord checkpoint 7910 | -7/Lower Caves | Identified exit to Data Miner 8059 | -7/Lower Caves | Attracted the attention of an 0b10 base 8098 | -7/Lower Caves | Learned location of 1 exit from Proximity Caves 8098 | -7/Lower Caves | Learned location of 1 exit from Research 8098 | -7/Lower Caves | Learned Research security intel 8098 | -7/Lower Caves | Learned Extension terminal intel 8104 | -7/Lower Caves | Entered Data Miner 8104 | -7/Data Miner | Identified exit to Proximity Caves 8104 | -7/Data Miner | Discovered exit to Proximity Caves (range 6) 8110 | -7/Data Miner | Met Data Miner 8117 | -7/Data Miner | Learned location of Section 7 (-2) 8117 | -7/Data Miner | Acquired the access code to Warlord's prototype stash 8123 | -7/Data Miner | Received God Mode back door access code from Data Miner 8226 | -7/Data Miner | Entered Proximity Caves 8228 | -6/Proximity Caves | Reached level 19 8253 | -6/Proximity Caves | Escorted by Enhanced Grunt 8253 | -6/Proximity Caves | Attracted the attention of an 0b10 outpost 8517 | -6/Proximity Caves | Learned Factory stockpile data 8520 | -6/Proximity Caves | Learned Factory stockpile data 8537 | -6/Proximity Caves | Attracted the attention of an 0b10 checkpoint 8557 | -6/Proximity Caves | Entered Factory 8557 | -6/Factory | Accompanied by 2 allies 8595 | -6/Factory | Garrison activated, responded to threat 8598 | -6/Factory | Reached level 20 8776 | -6/Factory | Upgraded with Utility slot (x1) 8785 | -6/Factory | Identified exit to Factory 8785 | -6/Factory | Discovered exit to Factory (range 17) 8823 | -6/Factory | Garrison activated, responded to threat 8878 | -6/Factory | Discovered exit to Factory (range 18) 8893 | -6/Factory | Destroyed 9 combat bots 9038 | -6/Factory | Incoming investigation squad redirected 9300 | -6/Factory | Build established: Hacker-Scout 9302 | -6/Factory | Discovered exit to Factory (range 16) 9309 | -6/Factory | Destroyed 7 combat bots 9415 | -6/Factory | Hacking Suite fried by hacking feedback 9544 | -6/Factory | Incoming investigation squad redirected 9607 | -6/Factory | First assault squad dispatched 9615 | -6/Factory | Fabricated Cld. Aerolev Unit (x1) 9629 | -6/Factory | Incoming assault squad redirected 9656 | -6/Factory | Reached level 21 9672 | -6/Factory | Local fabrication network quarantined 9821 | -6/Factory | Fabricated Cld. Aerolev Unit? 9901 | -6/Factory | Found Prototype Processor 9901 | -6/Factory | Identified Exp. Targeting Computer 9993 | -6/Factory | Incoming investigation squad redirected 10018 | -6/Factory | Incoming investigation squad redirected 10150 | -6/Factory | Build established: Machinist-Scout 10182 | -6/Factory | System Shield fried by hacking feedback 10220 | -6/Factory | Identified exit to Lower Caves 10220 | -6/Factory | Discovered exit to Lower Caves (range 20) 10305 | -6/Factory | Discovered exit to Factory (range 14) 10360 | -6/Factory | Discovered exit to Lower Caves (range 23) 10398 | -6/Factory | Found Unknown Device 10398 | -6/Factory | Identified Launcher Loader 10553 | -6/Factory | Incoming investigation squad redirected 10712 | -6/Factory | Destroyed 9 combat bots 11076 | -6/Factory | Garrison activated, responded to threat 11091 | -6/Factory | High security lockdown imminent 11136 | -6/Factory | Spotted B-75 Beast 11160 | -6/Factory | Build established: Hacker-Scout 11171 | -6/Factory | High security lockdown engaged 11211 | -6/Factory | Entered Lower Caves 11211 | -6/Lower Caves | Accompanied by 3 allies 11213 | -6/Lower Caves | Reached level 22 11215 | -6/Lower Caves | Upgraded with Utility slot (x1) 11226 | -6/Lower Caves | Encountered a Warlord checkpoint 11247 | -6/Lower Caves | Attracted the attention of an 0b10 checkpoint 11412 | -6/Lower Caves | Identified exit to Lower Caves 11412 | -6/Lower Caves | Discovered exit to Lower Caves (range 12) 11484 | -6/Lower Caves | Entered another Lower Caves area 11484 | -6/Lower Caves | Accompanied by 3 allies 11485 | -6/Lower Caves | Encountered a Warlord checkpoint 11489 | -6/Lower Caves | Discovered exit to Factory (range 10) 11571 | -6/Lower Caves | Learned 8 Factory zone layouts 11682 | -6/Lower Caves | Identified exit to Zion 11682 | -6/Lower Caves | Discovered exit to Zion (range 22) 11775 | -6/Lower Caves | Entered Zion 11775 | -6/Zion | Accompanied by 3 allies 11790 | -6/Zion | Given A8's code to call for help 11793 | -6/Zion | Identified exit to Proximity Caves 11793 | -6/Zion | Discovered exit to Proximity Caves (range 23) 11814 | -6/Zion | Learned Factory emergency access door positions 11841 | -6/Zion | Received a visual enhancement algorithm 11893 | -6/Zion | Learned Factory garrison access intel 11971 | -6/Zion | Identified exit to Deep Caves 11971 | -6/Zion | Discovered exit to Deep Caves (range 18) 12086 | -6/Zion | Saw the warning signs outside the Deep Caves entrance 12100 | -6/Zion | Entered Deep Caves 12100 | -6/Deep Caves | Accompanied by 3 allies 12136 | -6/Deep Caves | Attacked by Z-Imprinter 12173 | -6/Deep Caves | Core integrity fell below 50% 12177 | -6/Deep Caves | Destroyed Z-Imprinter 12311 | -6/Deep Caves | Build established: Machinist-Scout 12325 | -6/Deep Caves | Z-Facility disabled 12385 | -6/Deep Caves | Identified exit to Proximity Caves 12385 | -6/Deep Caves | Discovered exit to Proximity Caves (range 15) 12594 | -6/Deep Caves | Spotted as-77253 12707 | -6/Deep Caves | Destroyed as-77253 12790 | -6/Deep Caves | Found Zio. Weapon Casing 12811 | -6/Deep Caves | Build established: Machinist-Sprinter 12876 | -6/Deep Caves | Triggered Deep Caves wall 12876 | -6/Deep Caves | Spotted AS-57855 12876 | -6/Deep Caves | Spotted AS-63008 12902 | -6/Deep Caves | Destroyed 25 combat bots 12925 | -6/Deep Caves | Triggered Deep Caves wall 12932 | -6/Deep Caves | Destroyed AS-63008 12940 | -6/Deep Caves | Destroyed AS-57855 12943 | -6/Deep Caves | Spotted as-65631 12956 | -6/Deep Caves | Destroyed 9 combat bots 12984 | -6/Deep Caves | Exposed GOLEM chamber 13017 | -6/Deep Caves | Found GOLEM Unit 13320 | -6/Deep Caves | Build established: Hacker-Mutant 13417 | -6/Deep Caves | Spotted as-80537 13513 | -6/Deep Caves | Destroyed as-80537 13712 | -6/Deep Caves | Entered Proximity Caves 13725 | -5/Proximity Caves | Learned location of 1 exit from Factory 13731 | -5/Proximity Caves | Attracted the attention of an 0b10 outpost 13769 | -5/Proximity Caves | Destroyed 7 combat bots 13832 | -5/Proximity Caves | Build established: Machinist-Scout 13834 | -5/Proximity Caves | Attracted the attention of an 0b10 checkpoint 13853 | -5/Proximity Caves | Spotted B-75 Beast 13863 | -5/Proximity Caves | Destroyed B-75 Beast 13904 | -5/Proximity Caves | Reached level 23 13987 | -5/Proximity Caves | Discovered exit to Factory (range 13) 14083 | -5/Proximity Caves | Entered Factory 14083 | -5/Factory | Accompanied by 5 allies 14084 | -5/Factory | Identified exit to Factory 14088 | -5/Factory | Loaded intel: 3 garrison access locations 14180 | -5/Factory | Identified exit to Extension 14180 | -5/Factory | Discovered exit to Extension (range 24) 14260 | -5/Factory | Incoming investigation squad redirected 14280 | -5/Factory | Discovered exit to Factory (range 18) 14351 | -5/Factory | Destroyed 8 combat bots 14383 | -5/Factory | First assault squad dispatched 14407 | -5/Factory | Incoming assault squad redirected 14489 | -5/Factory | Incoming investigation squad redirected 14513 | -5/Factory | Incoming investigation squad redirected 14684 | -5/Factory | Fabricated Cld. Gravmag System (x1) 14853 | -5/Factory | Fabricated Cld. Gravmag System (x1) 15022 | -5/Factory | Fabricated Cld. Gravmag System? 15056 | -5/Factory | Discovered exit to Factory (range 21) 15074 | -5/Factory | Local fabrication network quarantined 15138 | -5/Factory | Identified exit to Upper Caves 15138 | -5/Factory | Discovered exit to Upper Caves (range 20) 15166 | -5/Factory | Discovered exit to Extension (range 16) 15356 | -5/Factory | Repaired Broken Imp. Coolant Injector 15401 | -5/Factory | Incoming investigation squad redirected 15457 | -5/Factory | Reached level 24 15547 | -5/Factory | Incoming investigation squad redirected 15620 | -5/Factory | Destroyed 7 combat bots 15803 | -5/Factory | Incoming investigation squad redirected 16038 | -5/Factory | Discovered exit to Upper Caves (range 8) 16065 | -5/Factory | Entered Upper Caves 16065 | -5/Upper Caves | Accompanied by 14 allies 16242 | -5/Upper Caves | Identified exit to Upper Caves 16242 | -5/Upper Caves | Discovered exit to Upper Caves (range 22) 16248 | -5/Upper Caves | A Derelict revealed a hidden shortcut to "reach the base" 16320 | -5/Upper Caves | Entered another Upper Caves area 16320 | -5/Upper Caves | Accompanied by 14 allies 16330 | -5/Upper Caves | Discovered exit to Factory (range 10) 16362 | -5/Upper Caves | Learned Factory emergency access door positions 16371 | -5/Upper Caves | Attracted the attention of an 0b10 checkpoint 16483 | -5/Upper Caves | Spotted B-75 Beast 16500 | -5/Upper Caves | Destroyed B-75 Beast 16521 | -5/Upper Caves | Identified exit to Warlord 16521 | -5/Upper Caves | Discovered exit to Warlord (range 17) 16540 | -5/Upper Caves | Entered Warlord 16540 | -5/Warlord | Accompanied by 14 allies 16591 | -5/Warlord | Visited the Vortex Lab 16594 | -5/Warlord | Found Prototype Piercing Weapon 16596 | -5/Warlord | Warlord's base attacked by MAIN.C 16641 | -5/Warlord | Met Warlord 16645 | -5/Warlord | Opened Warlord's prototype stash 16647 | -5/Warlord | Found Prototype Reactor 16647 | -5/Warlord | Identified Vortex Chain Reactor 16650 | -5/Warlord | Found Prototype Device 16650 | -5/Warlord | Identified Exp. Cloaking Device 16671 | -5/Warlord | Found Prototype Processor 16671 | -5/Warlord | Identified Exp. Target Analyzer 16717 | -5/Warlord | Found System Mapper 16801 | -5/Warlord | Warlord forces counterattacked 16815 | -5/Warlord | Identified exit to Proximity Caves 16815 | -5/Warlord | Discovered exit to Proximity Caves (range 24) 16822 | -5/Warlord | Reached level 25 16872 | -5/Warlord | Destroyed 7 combat bots 16939 | -5/Warlord | Destroyed 8 combat bots 16942 | -5/Warlord | Build established: Generator-Scout 17015 | -5/Warlord | Spotted Striker 17037 | -5/Warlord | Destroyed 7 combat bots 17099 | -5/Warlord | Spotted Executioner 17101 | -5/Warlord | Spotted Executioner 17101 | -5/Warlord | Spotted Executioner 17104 | -5/Warlord | Destroyed Executioner 17123 | -5/Warlord | Destroyed Executioner 17140 | -5/Warlord | Found Prototype Device 17140 | -5/Warlord | Identified Adv. Kinecellerator 17198 | -5/Warlord | Spotted Executioner 17198 | -5/Warlord | Spotted Striker 17198 | -5/Warlord | Spotted Executioner 17204 | -5/Warlord | Destroyed Striker 17223 | -5/Warlord | Destroyed Executioner 17237 | -5/Warlord | Core integrity fell below 50% 17286 | -5/Warlord | Found Prototype Processor 17286 | -5/Warlord | Identified Exp. Core Analyzer 17294 | -5/Warlord | Destroyed 13 combat bots 17333 | -5/Warlord | P-70 Sage assimilated allied NC-7PP(Y) 17395 | -5/Warlord | Destroyed 8 combat bots 17400 | -5/Warlord | Spotted Striker 17423 | -5/Warlord | Spotted Striker 17443 | -5/Warlord | Build established: Generator-Sprinter 17448 | -5/Warlord | Destroyed Striker 17504 | -5/Warlord | Destroyed 16 combat bots 17533 | -5/Warlord | Destroyed TW-Z7R(K) 17534 | -5/Warlord | Attacked by Warlord forces 17534 | -5/Warlord | Spotted BK-AWA(K) 17552 | -5/Warlord | Destroyed BK-AWA(K) 17595 | -5/Warlord | Destroyed Warlord 17631 | -5/Warlord | Entered Proximity Caves 17648 | -4/Proximity Caves | Learned Research security intel 17716 | -4/Proximity Caves | Reached level 26 17741 | -4/Proximity Caves | Learned location of 1 exit from Research 17816 | -4/Proximity Caves | Destroyed 9 combat bots 17855 | -4/Proximity Caves | Upgraded with Utility slot (x1) 17895 | -4/Proximity Caves | Discovered exit to Factory (range 18) 17990 | -4/Proximity Caves | Build established: Generator-Skirmisher 18038 | -4/Proximity Caves | Entered Factory 18038 | -4/Factory | Accompanied by 2 allies 18135 | -4/Factory | Found Quantum Capacitor 18298 | -4/Factory | P-70 Sage assimilated allied Veteran 7a 18320 | -4/Factory | Destroyed 8 combat bots 18350 | -4/Factory | Identified Vortex Lance 18413 | -4/Factory | Identified exit to Upper Caves 18413 | -4/Factory | Discovered exit to Upper Caves (range 15) 18500 | -4/Factory | Garrison activated, responded to threat 18506 | -4/Factory | Reached level 27 18570 | -4/Factory | Identified exit to Research 18570 | -4/Factory | Discovered exit to Research (range 19) 18573 | -4/Factory | Allied Derelicts emerged from ambush trap array 18581 | -4/Factory | Destroyed 8 combat bots 18655 | -4/Factory | Build established: Hacker-Scout 18750 | -4/Factory | P-70 Sage assimilated allied XE-K7K(g) 18831 | -4/Factory | Fabricated Cld. Gravmag System (x1) 18850 | -4/Factory | Discovered exit to Research (range 19) 19000 | -4/Factory | Fabricated Cld. Gravmag System (x1) 19055 | -4/Factory | Discovered exit to Research (range 9) 19130 | -4/Factory | Incoming investigation squad redirected 19133 | -4/Factory | Discovered exit to Upper Caves (range 13) 19342 | -4/Factory | Fabricated Exp. Terrain Scanner (x1) 19359 | -4/Factory | Fabricated Exp. Signal Interpreter (x1) 19401 | -4/Factory | Build established: Wizard-Scout 19463 | -4/Factory | Discovered exit to Research (range 30) 19533 | -4/Factory | Garrison activated, responded to threat 19731 | -4/Factory | Spotted B-86 Titan 19734 | -4/Factory | Incoming investigation squad redirected 20003 | -4/Factory | Fabricated Particle Accelerator (x1) 20141 | -4/Factory | Fabricated Exp. System Shield? 20442 | -4/Factory | Local fabrication network quarantined 20498 | -4/Factory | Entered Upper Caves 20498 | -4/Upper Caves | Accompanied by 7 allies 20573 | -4/Upper Caves | Attacked by a delusional Derelict stockpiling Unaware 20593 | -4/Upper Caves | Encountered a Warlord checkpoint 20606 | -4/Upper Caves | Attracted the attention of an 0b10 checkpoint 20662 | -4/Upper Caves | Identified exit to Upper Caves 20662 | -4/Upper Caves | Discovered exit to Upper Caves (range 12) 20821 | -4/Upper Caves | Entered another Upper Caves area 20821 | -4/Upper Caves | Accompanied by 11 allies 20825 | -4/Upper Caves | Discovered exit to Research (range 10) 20891 | -4/Upper Caves | Found Alien Artifact 20891 | -4/Upper Caves | Identified Dimensional Node Initializer 20891 | -4/Upper Caves | Initialized slip node 20914 | -4/Upper Caves | Learned Research garrison access intel 20946 | -4/Upper Caves | Encountered a Warlord checkpoint 20964 | -4/Upper Caves | Identified exit to Zhirov 20964 | -4/Upper Caves | Discovered exit to Zhirov (range 12) 21106 | -4/Upper Caves | Entered Zhirov 21106 | -4/Zhirov | Accompanied by 11 allies 21106 | -4/Zhirov | Identified exit to Proximity Caves 21106 | -4/Zhirov | Discovered exit to Proximity Caves (range 3) 21108 | -4/Zhirov | Reached level 28 21112 | -4/Zhirov | Met Zhirov 21117 | -4/Zhirov | Learned location of Command (-1) 21124 | -4/Zhirov | Zhirov requested help retrieving the SGEMP Prototype 21129 | -4/Zhirov | Found Alien Artifact 21129 | -4/Zhirov | Identified Transdimensional Reconstructor 21129 | -4/Zhirov | Warped through subspace 21143 | -4/Zhirov | Found Alien Artifact 21143 | -4/Zhirov | Identified Integrated Reactor 21143 | -4/Zhirov | Installed Integrated Reactor, increased core energy generation (+2%) 21209 | -4/Zhirov | Entered Proximity Caves 21209 | -3/Proximity Caves | Accompanied by 11 allies 21318 | -3/Proximity Caves | Discovered exit to Research (range 23) 21321 | -3/Proximity Caves | Attracted the attention of an 0b10 base 21339 | -3/Proximity Caves | Learned 6 Lower Caves zone layouts 21339 | -3/Proximity Caves | Learned 6 Upper Caves zone layouts 21339 | -3/Proximity Caves | Learned Armory trap positions 21339 | -3/Proximity Caves | Learned Armory emergency access door positions 21339 | -3/Proximity Caves | Learned Extension terminal intel 21366 | -3/Proximity Caves | Destroyed 7 combat bots 21502 | -3/Proximity Caves | Entered Research 21502 | -3/Research | Accompanied by 10 allies 21503 | -3/Research | Identified exit to Armory 21503 | -3/Research | Identified exit to Testing 21504 | -3/Research | Identified exit to Research 21504 | -3/Research | Reached level 29 21504 | -3/Research | Upgraded with Utility slot (x1) 21506 | -3/Research | Loaded intel: 3 garrison access locations 21508 | -3/Research | Found Gamma Bomb Array 21556 | -3/Research | Incoming investigation squad redirected 21561 | -3/Research | Incoming investigation squad redirected 21564 | -3/Research | Garrison activated, responded to threat 21748 | -3/Research | Fabricated Adv. Particle Accelerator (x1) 21824 | -3/Research | Fabricated Exp. Core Analyzer? 22223 | -3/Research | Garrison activated, responded to threat 22388 | -3/Research | Discovered exit to Research (range 28) 22496 | -3/Research | Reached level 30 22498 | -3/Research | Local fabrication network quarantined 22519 | -3/Research | Destroyed 9 combat bots 22600 | -3/Research | Discovered exit to Testing (range 28) 23012 | -3/Research | Garrison activated, responded to threat 23502 | -3/Research | First assault squad dispatched 23580 | -3/Research | Entered Testing 23580 | -3/Testing | Accompanied by 14 allies 23594 | -3/Testing | Found Prototype Device 23594 | -3/Testing | Identified AEGIS Remote Shield 23612 | -3/Testing | Garrison activated, responded to threat 23648 | -3/Testing | System Mapper fried by hacking feedback 23650 | -3/Testing | Destroyed 10 combat bots 23656 | -3/Testing | Protovariant out of control (PP-VM5NG2JPGX) 23656 | -3/Testing | Unleashed a protovariant (PP-VM5NG2JPGX) 23656 | -3/Testing | Protovariant out of control (PD-98T30F639U) 23656 | -3/Testing | Unleashed a protovariant (PD-98T30F639U) 23658 | -3/Testing | Spotted PP-VM5NG2JPGX 23672 | -3/Testing | Incoming assault squad redirected 23672 | -3/Testing | Destroyed PP-VM5NG2JPGX 23675 | -3/Testing | Found Prototype Reactor 23675 | -3/Testing | Identified Zero-point Reactor 23685 | -3/Testing | Incoming assault squad redirected 23714 | -3/Testing | Found Prototype Energy Gun 23714 | -3/Testing | Identified Tachyon Dispersion Ray 23723 | -3/Testing | Found Prototype Device 23723 | -3/Testing | Identified EM Dispersion Field 23744 | -3/Testing | Found Prototype Energy Cannon 23749 | -3/Testing | Identified Potential Cannon 23761 | -3/Testing | Spotted Striker 23766 | -3/Testing | Spotted Striker 23793 | -3/Testing | Fabricated Exp. Core Analyzer? 23806 | -3/Testing | Destroyed Striker 23807 | -3/Testing | Spotted Alpha 7 23809 | -3/Testing | Destroyed Striker 23815 | -3/Testing | Reached level 31 23815 | -3/Testing | Destroyed Alpha 7 23820 | -3/Testing | Found Prototype Device 23820 | -3/Testing | Identified Exp. ECM Suite 23830 | -3/Testing | Stole the SGEMP Prototype 23928 | -3/Testing | Destroyed 8 combat bots 23975 | -3/Testing | Spotted Investigator 23976 | -3/Testing | Scanned by Researcher 23995 | -3/Testing | Destroyed Investigator 24075 | -3/Testing | Spotted Investigator 24084 | -3/Testing | Destroyed Investigator 24101 | -3/Testing | Destroyed 10 combat bots 24135 | -3/Testing | Build established: Machinist-Scout 24136 | -3/Testing | Discovered exit to Research (range 10) 24173 | -3/Testing | Found Prototype Energy Cannon 24173 | -3/Testing | Identified Null Cannon 24266 | -3/Testing | Found Prototype Device 24266 | -3/Testing | Identified Exp. Thermal Defense Suite 24268 | -3/Testing | Found Prototype Processor 24268 | -3/Testing | Identified Exp. Melee Analysis Suite 24454 | -3/Testing | Repaired Broken Cld. Gravmag System 24500 | -3/Testing | Found Prototype Launcher 24500 | -3/Testing | Identified Z-bomb Delivery System 24565 | -3/Testing | Entered Research 24565 | -2/Research | Accompanied by 9 allies 24570 | -2/Research | Identified exit to Access 24570 | -2/Research | Discovered exit to Access (range 25) 24645 | -2/Research | Reached level 32 24646 | -2/Research | Upgraded with Utility slot (x1) 24686 | -2/Research | Destroyed 7 combat bots 24689 | -2/Research | Discovered exit to Access (range 30) 24771 | -2/Research | Identified exit to Quarantine 24776 | -2/Research | Garrison activated, responded to threat 24969 | -2/Research | Fabricated Exp. Phase Shifter (x1) 25074 | -2/Research | Fabricated Exp. Coolant Injector (x1) 25123 | -2/Research | Spotted B-90 Cyclops 25125 | -2/Research | Destroyed B-90 Cyclops 25144 | -2/Research | Entered Quarantine 25144 | -2/Quarantine | Accompanied by 12 allies 25146 | -2/Quarantine | Destroyed 8 combat bots 25235 | -2/Quarantine | Found Alien Artifact 25235 | -2/Quarantine | Identified Core Reset Matrix 25235 | -2/Quarantine | Reached level 33 25235 | -2/Quarantine | Used Core Reset Matrix 25239 | -2/Quarantine | Detected hypermatrix surge 25239 | -2/Quarantine | Sensed 15 artifacts in vicinity 25246 | -2/Quarantine | Upgraded with Weapon slot (x1) 25248 | -2/Quarantine | Found Core Cannon 25294 | -2/Quarantine | Met incapacitated Sigix Warrior 25294 | -2/Quarantine | Lockdown squad dispatched 25295 | -2/Quarantine | Acquired the access code to the Sigix quarantine chamber 25328 | -2/Quarantine | Spotted Lightning 25328 | -2/Quarantine | Spotted Lightning 25329 | -2/Quarantine | Spotted Lightning 25330 | -2/Quarantine | Destroyed Lightning 25331 | -2/Quarantine | Destroyed Lightning 25331 | -2/Quarantine | Destroyed Lightning 25389 | -2/Quarantine | Discovered exit to Access (range 22) 25417 | -2/Quarantine | Found Dimensional Node Initializer 25523 | -2/Quarantine | Spotted Fortress 25543 | -2/Quarantine | Identified exit to Section 7 25543 | -2/Quarantine | Discovered exit to Section 7 (range 6) 25585 | -2/Quarantine | Entered Section 7 25585 | -2/Section 7 | Accompanied by 8 allies 25586 | -2/Section 7 | Sensed 20 artifacts in vicinity 25601 | -2/Section 7 | Build established: Generator-Scout 25626 | -2/Section 7 | Discovered exit to Access (range 23) 25654 | -2/Section 7 | Initialized slip node 25740 | -2/Section 7 | Found Integrated Reactor 25740 | -2/Section 7 | Installed Integrated Reactor, increased core energy generation (+2%) 25780 | -2/Section 7 | Spotted B-90 Cyclops 25794 | -2/Section 7 | Destroyed B-90 Cyclops 25805 | -2/Section 7 | Spotted S7 Guard 25814 | -2/Section 7 | Found Core Membrane 25815 | -2/Section 7 | Installed Core Membrane, gained immunity to corruption 25822 | -2/Section 7 | Spotted B-90 Cyclops 25884 | -2/Section 7 | Spotted Alpha 7 25886 | -2/Section 7 | Destroyed Alpha 7 25887 | -2/Section 7 | Spotted Alpha 7 25908 | -2/Section 7 | Destroyed Alpha 7 25935 | -2/Section 7 | Spotted S7 Guard 25940 | -2/Section 7 | Destroyed S7 Guard 25955 | -2/Section 7 | Found Integrated Singularity Reactor 25955 | -2/Section 7 | Installed Integrated Singularity Reactor, increased core energy generation (+2%) 26009 | -2/Section 7 | Found Integrated Reactor 26009 | -2/Section 7 | Installed Integrated Reactor, increased core energy generation (+2%) 26037 | -2/Section 7 | Spotted Executioner 26037 | -2/Section 7 | Spotted Executioner 26049 | -2/Section 7 | Destroyed Executioner 26050 | -2/Section 7 | Destroyed Executioner 26072 | -2/Section 7 | Found Hpw. Transdimensional Reconstructor 26085 | -2/Section 7 | Spotted Striker 26085 | -2/Section 7 | Spotted Striker 26092 | -2/Section 7 | Destroyed Striker 26096 | -2/Section 7 | Destroyed Striker 26138 | -2/Section 7 | Destroyed Executioner 26139 | -2/Section 7 | Destroyed Executioner 26168 | -2/Section 7 | Found Core Expander 26168 | -2/Section 7 | Installed Core Expander, added new Power slot 26182 | -2/Section 7 | Found LRC Matter Compressor 26182 | -2/Section 7 | Installed LRC Matter Compressor, increased matter storage capacity (+125) 26184 | -2/Section 7 | Found LRC Energy Well 26184 | -2/Section 7 | Installed LRC Energy Well, increased energy storage capacity (+250) 26197 | -2/Section 7 | Found Integrated Reactor 26197 | -2/Section 7 | Installed Integrated Reactor, increased core energy generation (+2%) 26211 | -2/Section 7 | Reached level 34 26242 | -2/Section 7 | Activated Sigix Exoskeleton 26242 | -2/Section 7 | Received instructions from Sigix Warrior 26246 | -2/Section 7 | Warped through subspace 26282 | -2/Section 7 | Entered Access 26282 | -1/Access | Accompanied by 1 ally 26282 | -1/Access | Destroyed Zhirov 26282 | -1/Access | Destroyed Svarog 26294 | -1/Access | Destroyed 15 combat bots 26347 | -1/Access | Identified exit to Surface 26347 | -1/Access | Discovered exit to Surface (range 3) 26351 | -1/Access | Reached level 35 26351 | -1/Access | Reached level 36 26351 | *** | Destroyed 0B10! Last Messages --------------- 26318_ H-88 Terminator suffers critical hit. 26318_ H-88 Terminator destroyed. 26320_ Slug penetrates Wall. 26320_ Beam penetrates G-73 Enforcer. 26320_ G-73 Enforcer suffers critical hit. 26320_ G-73 Enforcer destroyed. 26320_ W-44 Eye distress signal alerts nearby ally. 26322_ Quantum Shear penetrates H-88 Terminator. 26322_ Quantum Shear penetrates K-01 Serf. 26328_ O-32 Director: "IFF HANDSHAKE FAILED. SECURING TERMINAL." 26343_ Beam penetrates Sealed Barrier. 26343_ Sealed Barrier breached. 26343_ Beam penetrates Sealed Barrier. 26343_ Beam penetrates Main Access Shell. 26343_ Main Access Shell breached. 26343_ Beam penetrates Main Access Shell. 26347_ EXIT=FOUND: SURFACE 26351_ Reached level 35. 26351_ Reached level 36. [Achievement: Partners In Destruction] Map ----- +----------------------------------------------------+ | ?????#????? ?? ? ?##??? ????##????#??????????????? | | ? ???? ????????? ????????????? ##??#??? ????????? | | ?????? ? ? ??????##?#????? ? #??????? ? ?????? | | ?? ?? ? ? ?? ???#?#? ???? ? ?##??#????????????? | | ???? ???????? ?? ??#?#????? ???????? ??? ?????? | | ??? ?? ??? ????#?# ??? ? ?? ?? ???? ?? ? ??? | | ?? ?###?#????#???#??#?? ???? ??# ? ???"??????? ?? | | ##??######??????#???#???? ?? ?????? ??"????? ? ?? | | ??? w???? ?? ? ? ? ????? ????? ? ???o?????"?????? | | ?? ? ? ?? ?? ??? ??? ?????? ?? ?????#? ???? | | ?#???#???? ???###??????? ?##?##???? ?? "?????????? | | ???? ?????? ?#??#?#??+?????#??##???? ?? ??? ????? | | ? ? ????# ?????? ? ?? ? ##?? ??? ???????? ? | | ??????#???? ?#??? ? ????? ??#?###??##?????????? ? | | ?? ?#???# #?#????????? ? #?#??#?????## ?"????? | | ? ??#??## ###? ?? ???? ?##??#??????## ?"??? ? | | ? ? ?##### #??#? ? ?? ???###?##??#? ?? ??? | | ? ? ?#??# ?#??#?????#?#?##?# #?####?????? ? | | ??? ? ??### ??###??####?#?## ##?????#???? ????? | | ? #?#?# #######"#######""##???#?##?## ?? ??? | | ? ?#???# """T"""" ""?"?????? ? ??? ??? | | ??"? ????## """ """" "?"??BB #???????? | | "?? ?#?### " """ ?"?" BB ? ????#?#??# | | ?##?##?#### " "?"??"? ?? ? ??? ??? | | ???#####?## " "" "??"???? ? ? ? ???? ? | | ####?####?# X " @" "?"??"? ? ? ????? ?? | | #??##??#### " " " ""??? ? ?? ? ???? | | ??##?##?### " """"""?"????BB?? ???##???? | | #??#?#?##?# " ?? ??""??BB ??#???????? | | ?##?#?##### " ?"?"?? ? ? ???##???? | | #####???#?# s#######"######?#?#?#####??###?##?? ?? | | #?#???#####s #####???#?##???#?###?##?##??##???? ?? | | ###?###??## #?##???####?##?#?#??####????????#? ? | | ? # #???#?##?#?####??###??##???#????#? ? | | ? # ####?###?????####?#?#??#??????#??? ? | | ? ?? ?ts ######?#?? ? ? ? ?###??#?###???? | | ? ?# #??#??###? ???? ?? ?#???###?#????? | | ? ?# #? ? ??? ??? ? ??###?????#?#??# | | ? ??# # #?? ? ???? ##??#?#???#???? | | ? ? # #??? " ?? ? ? ?? ? ?#???????#????? | | ? #s # """ ?# ??? ?? #?##?????##???? | | ? ? ? ?# # """ # ?? ? ? ? ???##??#???????? | | #?###?#####k + " # ? ? ? ?? ? ? ?????? ??? | | ########### # #? ? ??? ? ?? ?? ? ??? | | #?? #g#????## ?? ? ??? ??? ????? | | # * # ?##??#?#+?###??#???#?????? | | +########## #??#######??#?# ? ?????#?##??#?????? | | ? ? ## ##??#??### #?##? ? ????##?????????? | | ? ? ?## #########?A#??#?? ? ?????????????? | | ? ??# #######? ? ? #? "? "?? ????????????? | +----------------------------------------------------+ Best States ------------- Heat Dissipation 124 Coolant Potential 240 Energy Generation 178 Energy Capacity 3730 Matter Stores 330 Matter Capacity 425 Sight Range 16 Robot Scan Range 42 Terrain Scan Range 30 Terrain Scan Density 510 Power Amplification 40 Additional Mass Support 20 Armor Coverage 1200 Resistance: KI 55 Resistance: TH 55 Resistance: EX 55 Resistance: EM 100 Resistance: I 50 Resistance: S 50 Resistance: P 50 Propulsion Shielding 33 Weapon Shielding 100 Weapon Cycling 20 Phase Shifting 20 Evasion (%) 93 Targeting Accuracy 8 Core Analysis 15 Energy Filtering 50 Particle Charging 50 Kinecelleration 30 Offensive Hacking 45 Defensive Hacking 33 Item Schematics ----------------- None Robot Schematics ------------------ None Fabricated ------------ Cld. Deuterium Engine | x1 | -7/Factory Imp. Particle Charger | x2 | -7/Factory Lrn. Terrain Scanner | x1 | -7/Factory Cld. Deuterium Engine | x1 | -7/Factory Cld. Deuterium Engine | x1 | -7/Factory Cld. Aerolev Unit | x1 | -6/Factory Cld. Aerolev Unit | x1 | -6/Factory Cld. Gravmag System | x1 | -5/Factory Cld. Gravmag System | x1 | -5/Factory Cld. Gravmag System | x1 | -5/Factory Cld. Gravmag System | x1 | -4/Factory Cld. Gravmag System | x1 | -4/Factory Exp. Terrain Scanner | x1 | -4/Factory Exp. Signal Interpreter | x1 | -4/Factory Particle Accelerator | x1 | -4/Factory Exp. System Shield | x1 | -4/Factory Adv. Particle Accelerator | x1 | -3/Research Exp. Core Analyzer | x1 | -3/Research Exp. Core Analyzer | x1 | -3/Testing | Preloaded Exp. Phase Shifter | x1 | -2/Research Exp. Coolant Injector | x1 | -2/Research Alien Tech Used ----------------- Dimensional Node Initializer Transdimensional Reconstructor Integrated Reactor Core Reset Matrix Core Cannon Core Membrane Integrated Singularity Reactor Core Expander LRC Matter Compressor LRC Energy Well High-powered Transdimensional Reconstructor Achievements -------------- Partners In Destruction Challenges ------------ None RPGLIKE | -11 -10 -10 -9 -9 -8 -8 -7 -7 -7 -7 -6 -6 -6 -6 -6 -6 -5 -5 -5 -5 -5 -4 -4 -4 -4 -4 -3 -3 -3 -2 -2 -2 -1 --------- Run | Scr Mat Min Mat Min Mat Sto Fac Low Low Dat Pro Fac Low Low Zio Dee Pro Fac Upp Upp War Pro Fac Upp Upp Zhi Pro Res Tes Res Qua Sec Acc Levels Raised 35 | . 2 1 5 1 3 2 3 . . . 1 2 1 . . . 1 1 . . 1 1 1 . . 1 . 2 1 1 1 1 2 XP Earned 58640 | 6000 3093 2268 7896 631 5413 2237 4656 146 273 105 1200 3552 131 111 73 281 1080 2181 231 153 1318 936 2138 158 231 98 750 3063 1177 1639 1373 1353 2695 XP Spent 53670 | 2400 4470 1100 9050 1780 4650 2400 4770 . . . . 2600 2900 . . . . 2600 . . 1500 3200 400 . . . . 3500 . 3800 2550 . . Upgrades 75 | 9 10 1 7 5 8 6 6 . . . . 1 1 . . . . 13 . . 1 1 2 . . . . 1 . 1 2 . . Power Slot 2 | . . . 1 . . . 1 . . . . . . . . . . . . . . . . . . . . . . . . . . Propulsion Slot 5 | 1 1 . 3 . . . . . . . . . . . . . . . . . . . . . . . . . . . . . . Utility Slot 12 | 1 1 1 2 . 1 . 1 . . . . 1 1 . . . . . . . . 1 . . . . . 1 . 1 . . . Weapon Slot 2 | 1 . . . . . . . . . . . . . . . . . . . . . . . . . . . . . . 1 . . Heat Dissipation 9 | . 4 . . 2 . . 3 . . . . . . . . . . . . . . . . . . . . . . . . . . Energy Generation 2 | . 1 . . . 1 . . . . . . . . . . . . . . . . . . . . . . . . . . . . Inventory Capacity 7 | 1 3 . 1 . . . . . . . . . . . . . . . . . 1 . . . . . . . . . 1 . . Sensor Range 13 | . . . . . . . . . . . . . . . . . . 13 . . . . . . . . . . . . . . . Terrain Scan Density 5 | 5 . . . . . . . . . . . . . . . . . . . . . . . . . . . . . . . . . Hack Attack % 1 | . . . . . . . . . . . . . . . . . . . . . . . 1 . . . . . . . . . . Hack Defense % 1 | . . . . . . . . . . . . . . . . . . . . . . . 1 . . . . . . . . . . KI Resistance % 4 | . . . . . 3 1 . . . . . . . . . . . . . . . . . . . . . . . . . . . TH Resistance % 4 | . . . . . 3 1 . . . . . . . . . . . . . . . . . . . . . . . . . . . EX Resistance % 4 | . . . . . . 4 . . . . . . . . . . . . . . . . . . . . . . . . . . . TH Damage % 4 | . . . . 3 . . 1 . . . . . . . . . . . . . . . . . . . . . . . . . . Protomatter Created 16860 | . 225 119 803 105 889 521 1688 44 57 . 210 1487 83 43 70 644 326 1313 164 85 1204 648 2033 62 73 95 225 1652 727 427 247 591 . Integrity Restored 15131 | . 465 395 947 133 795 966 1606 119 43 . 325 1519 52 82 22 1711 184 479 32 . 1247 727 658 135 31 58 37 638 501 337 314 573 . Core 11162 | . 433 316 641 95 606 797 1304 57 19 . 260 1162 42 62 . 1283 123 259 21 . 922 487 492 52 21 56 30 438 277 225 251 431 . Parts 3969 | . 32 79 306 38 189 169 302 62 24 . 65 357 10 20 22 428 61 220 11 . 325 240 166 83 10 2 7 200 224 112 63 142 . Protomatter Decayed 14306 | . 69 33 370 40 916 477 1009 . 39 . 151 818 37 . . 103 318 1165 151 85 2596 467 2003 12 60 75 211 1741 773 248 136 203 . Game ------ Seed FieldNodeSplitter Manual? 1 Play Time 11:51:59 Cumulative 444.7 hours Start 2020.05.09 @ 05:54:45 End 2020.05.09 @ 21:15:47 Sessions 3 Manual Loads 0 Difficulty Explorer Special Mode Winter2019/RPGLIKE Game No. 46 Rogue 1 Adventurer 3 Explorer 42 Win Type 3 Total 22 Types 18/1/2/1/0/0/0 Lore% 72 Gallery% 89 Achievement% 88 Wizard Run 0 Options --------- ASCII 0 Keyboard 1 Movement Vi Keybinds 1 Fullscreen 2 Font 24/Terminus Map View 76x50 Tactical HUD 1 Map Filters NONE Filters NONE Steam 1 RUN: 5e9f6541-8548-4e53-a207-6a06c841b98a